Service,Expense Subtype,Merchant Name,Expense Invoice Date,Total Expense
DAY CENTRES,Domestic Goods-Other,ARGOS,04/09/2014,113.99
DAY CENTRES,Financial Services,CASH ADVANCE FEE,06/08/2014,11.80
DAY CENTRES,Financial Services,CASH ADVANCE FEE,28/08/2014,11.80
DAY CENTRES,Financial Services,CASH ADVANCE FEE,11/09/2014,11.80
DAY CENTRES,Financial Services,CASH ADVANCE FEE,08/10/2014,11.80
DAY CENTRES,Financial Services,CASH ADVANCE FEE,13/10/2014,5.90
DAY CENTRES,Financial Services,CASH ADVANCE FEE,28/10/2014,11.80
DAY CENTRES,Financial Services,SAIN - BRIXTON,05/08/2014,400.00
DAY CENTRES,Financial Services,SAIN - BRIXTON,27/08/2014,400.00
DAY CENTRES,Financial Services,SAIN - BRIXTON,10/09/2014,400.00
DAY CENTRES,Financial Services,SAIN - BRIXTON,07/10/2014,400.00
DAY CENTRES,Financial Services,SAIN - BRIXTON,10/10/2014,200.00
DAY CENTRES,Financial Services,SAIN - BRIXTON,27/10/2014,400.00
DAY CENTRES,Travel/Subsistence,OYSTER BUS AUTOTOP,16/08/2014,20.00
DAY CENTRES,Travel/Subsistence,OYSTER BUS AUTOTOP,31/08/2014,20.00
DAY CENTRES,Travel/Subsistence,OYSTER BUS AUTOTOP,18/09/2014,20.00
DAY CENTRES,Travel/Subsistence,OYSTER BUS AUTOTOP,02/10/2014,20.00
DAY CENTRES,Travel/Subsistence,OYSTER BUS AUTOTOP,12/10/2014,20.00
DAY CENTRES,Domestic Goods-Other,ARGOS,28/11/2014,33.23
DAY CENTRES,Financial Services,CASH ADVANCE FEE,12/11/2014,11.80
DAY CENTRES,Financial Services,CASH ADVANCE FEE,01/12/2014,11.80
DAY CENTRES,Financial Services,CASH ADVANCE FEE,17/12/2014,11.80
DAY CENTRES,Financial Services,CASH ADVANCE FEE,10/12/2014,11.80
DAY CENTRES,Financial Services,CASH ADVANCE FEE,22/12/2014,5.90
DAY CENTRES,Financial Services,SAIN - BRIXTON,11/11/2014,400.00
DAY CENTRES,Financial Services,SAIN - BRIXTON,28/11/2014,400.00
DAY CENTRES,Financial Services,SAIN - BRIXTON,16/12/2014,400.00
DAY CENTRES,Financial Services,SAIN - BRIXTON,09/12/2014,400.00
DAY CENTRES,Financial Services,SAIN - BRIXTON,19/12/2014,200.00
DAY CENTRES,Travel/Subsistence,OYSTER BUS AUTOTOP,07/11/2014,20.00
DAY CENTRES,Travel/Subsistence,OYSTER BUS AUTOTOP,07/11/2014,20.00
DAY CENTRES,Travel/Subsistence,OYSTER BUS AUTOTOP,03/12/2014,20.00
INTEGRATED DISABILITY,Arts & Leisure Services,WWW.FAIRFIELD.CO.UK,12/11/2014,135.00
INTEGRATED DISABILITY,Financial Services,CASH ADVANCE FEE,19/08/2014,11.80
INTEGRATED DISABILITY,Financial Services,CASH ADVANCE FEE,28/08/2014,11.80
INTEGRATED DISABILITY,Financial Services,CASH ADVANCE FEE,02/09/2014,5.90
INTEGRATED DISABILITY,Financial Services,CASH ADVANCE FEE,17/09/2014,11.80
INTEGRATED DISABILITY,Financial Services,CASH ADVANCE FEE,01/10/2014,11.80
INTEGRATED DISABILITY,Financial Services,CASH ADVANCE FEE,15/10/2014,11.80
INTEGRATED DISABILITY,Financial Services,CASH ADVANCE FEE,28/10/2014,11.80
INTEGRATED DISABILITY,Financial Services,CASH ADVANCE FEE,03/11/2014,8.85
INTEGRATED DISABILITY,Financial Services,CASH ADVANCE FEE,13/11/2014,11.80
INTEGRATED DISABILITY,Financial Services,CASH ADVANCE FEE,24/11/2014,11.80
INTEGRATED DISABILITY,Financial Services,CASH ADVANCE FEE,09/12/2014,11.80
INTEGRATED DISABILITY,Financial Services,CASH ADVANCE FEE,18/12/2014,11.80
INTEGRATED DISABILITY,Financial Services,CASH ADVANCE FEE,23/12/2014,11.80
INTEGRATED DISABILITY,Financial Services,ROYAL BANK UK /,14/10/2014,400.00
INTEGRATED DISABILITY,Financial Services,ROYAL BANK UK /,27/10/2014,400.00
INTEGRATED DISABILITY,Financial Services,ROYAL BANK UK /,21/11/2014,400.00
INTEGRATED DISABILITY,Financial Services,ROYAL BANK UK /,17/12/2014,400.00
INTEGRATED DISABILITY,Financial Services,SAIN - BRIXTON,18/08/2014,400.00
INTEGRATED DISABILITY,Financial Services,SAIN - BRIXTON,27/08/2014,400.00
INTEGRATED DISABILITY,Financial Services,SAIN - BRIXTON,01/09/2014,200.00
INTEGRATED DISABILITY,Financial Services,SAIN - BRIXTON,16/09/2014,400.00
INTEGRATED DISABILITY,Financial Services,SAIN - BRIXTON,30/09/2014,400.00
INTEGRATED DISABILITY,Financial Services,SAIN - BRIXTON,31/10/2014,300.00
INTEGRATED DISABILITY,Financial Services,SAIN - BRIXTON,12/11/2014,400.00
INTEGRATED DISABILITY,Financial Services,SAIN - BRIXTON,08/12/2014,400.00
INTEGRATED DISABILITY,Financial Services,SAIN - BRIXTON,22/12/2014,400.00
INTEGRATED DISABILITY,IT Services,PAYPAL *TECINTERACT,15/10/2014,100.78
INTEGRATED DISABILITY,Travel/Subsistence,NEWS AT NINE,19/08/2014,210.00
INTEGRATED DISABILITY,Travel/Subsistence,NEWS AT NINE,30/09/2014,100.00
INTEGRATED DISABILITY,Travel/Subsistence,NEWS AT NINE,28/10/2014,250.00
INTEGRATED DISABILITY,Travel/Subsistence,NEWS AT NINE,24/11/2014,200.00
INTEGRATED DISABILITY,Travel/Subsistence,NEWS AT NINE,12/12/2014,150.00
INTEGRATED DISABILITY,Accommodation,CLIFF HEAD HOTEL LTD,30/10/2014,50.00
INTEGRATED DISABILITY,Accommodation,DAUNCEYS HOTEL,28/10/2014,36.00
INTEGRATED DISABILITY,Arts & Leisure Services,Amazon EU,20/10/2014,35.59
INTEGRATED DISABILITY,Catering Equipment,Amazon *Mktplce EU-UK,13/11/2014,7.80
INTEGRATED DISABILITY,Catering Equipment,Amazon *Mktplce EU-UK,14/11/2014,10.17
INTEGRATED DISABILITY,Catering Equipment,Amazon *Mktplce EU-UK,14/11/2014,11.88
INTEGRATED DISABILITY,Catering Equipment,Amazon *Mktplce EU-UK,14/11/2014,5.56
INTEGRATED DISABILITY,Catering Equipment,Amazon *Mktplce EU-UK,14/11/2014,62.98
INTEGRATED DISABILITY,Catering Equipment,Amazon *Mktplce EU-UK,13/11/2014,26.60
INTEGRATED DISABILITY,Catering Equipment,Amazon *Mktplce EU-UK,02/10/2014,57.97
INTEGRATED DISABILITY,Catering Equipment,Amazon *Mktplce EU-UK,13/11/2014,5.95
INTEGRATED DISABILITY,Catering Equipment,Amazon *Mktplce EU-UK,13/11/2014,4.45
INTEGRATED DISABILITY,Catering Equipment,Amazon *Mktplce EU-UK,13/11/2014,5.78
INTEGRATED DISABILITY,Catering Equipment,Amazon *Mktplce EU-UK,24/11/2014,28.90
INTEGRATED DISABILITY,Catering Equipment,Amazon *Mktplce EU-UK,16/11/2014,34.99
INTEGRATED DISABILITY,Catering Equipment,Amazon *Mktplce EU-UK,18/11/2014,22.08
INTEGRATED DISABILITY,Catering Equipment,Amazon EU,06/11/2014,10.98
INTEGRATED DISABILITY,Catering Equipment,Amazon EU,25/11/2014,6.00
INTEGRATED DISABILITY,Catering Equipment,Amazon EU,20/10/2014,17.46
INTEGRATED DISABILITY,Catering Equipment,Amazon EU,09/12/2014,18.16
INTEGRATED DISABILITY,Catering Food & Drink,TESCO STORE 2764,29/08/2014,42.47
INTEGRATED DISABILITY,Catering Food & Drink,TESCO STORE 2764,11/09/2014,71.13
INTEGRATED DISABILITY,Catering Food & Drink,TESCO STORE 2764,22/08/2014,20.18
INTEGRATED DISABILITY,Catering Food & Drink,TESCO STORE 2764,01/10/2014,38.24
INTEGRATED DISABILITY,Catering Food & Drink,WM MORRISON PLC,15/09/2014,4.20
INTEGRATED DISABILITY,Consultancy-Other,TV LICENSING,26/11/2014,145.50
INTEGRATED DISABILITY,Domestic Goods-Other,B & M RETAIL,27/11/2014,74.08
INTEGRATED DISABILITY,Domestic Goods-Other,MORLEYS,11/09/2014,127.15
INTEGRATED DISABILITY,Domestic Goods-Other,TESCO STORE 2764,22/08/2014,36.00
INTEGRATED DISABILITY,Education-Arts/Crafts,Amazon *Mktplce EU-UK,04/08/2014,4.49
INTEGRATED DISABILITY,Education-Arts/Crafts,Amazon *Mktplce EU-UK,04/08/2014,3.90
INTEGRATED DISABILITY,Education-Library Books,Amazon *Mktplce EU-UK,14/11/2014,41.67
INTEGRATED DISABILITY,Education-Library Books,Amazon *Mktplce EU-UK,20/10/2014,19.16
INTEGRATED DISABILITY,Education-Musical Instruments,Amazon *Mktplce EU-UK,16/10/2014,9.99
INTEGRATED DISABILITY,Education-Other,Amazon *Mktplce EU-UK,06/08/2014,11.70
INTEGRATED DISABILITY,Education-Other,Amazon *Mktplce EU-UK,20/10/2014,9.65
INTEGRATED DISABILITY,Education-Other,Amazon EU,18/10/2014,17.11
INTEGRATED DISABILITY,Education-Other,Amazon EU,02/10/2014,143.14
INTEGRATED DISABILITY,Education-Other,THE COUNCIL FOR MUSIC,22/10/2014,117.00
INTEGRATED DISABILITY,Education-Other,THE COUNCIL FOR MUSIC,07/11/2014,117.00
INTEGRATED DISABILITY,Facilities-Printing,Amazon EU,20/10/2014,10.38
INTEGRATED DISABILITY,Financial Services,CASH ADVANCE FEE,10/09/2014,11.80
INTEGRATED DISABILITY,Financial Services,CASH ADVANCE FEE,23/10/2014,11.80
INTEGRATED DISABILITY,Financial Services,CASH ADVANCE FEE,23/10/2014,11.80
INTEGRATED DISABILITY,Financial Services,CASH ADVANCE FEE,23/10/2014,11.80
INTEGRATED DISABILITY,Financial Services,CASH ADVANCE FEE,15/12/2014,11.80
INTEGRATED DISABILITY,Financial Services,ROYAL BANK UK /,09/09/2014,400.00
INTEGRATED DISABILITY,Financial Services,ROYAL BANK UK /,20/08/2014,400.00
INTEGRATED DISABILITY,Stationery,Amazon *Mktplce EU-UK,06/11/2014,25.47
MENTAL HEALTH,Domestic Goods-Other,ARGOS,14/11/2014,28.49
MENTAL HEALTH,Financial Services,NATWEST BANK /,14/11/2014,200.00
MENTAL HEALTH,Financial Services,NATWEST BANK /,20/11/2014,200.00
MENTAL HEALTH,Financial Services,SAIN - HONOR OAK PARK,14/11/2014,150.00
MENTAL HEALTH,Financial Services-Banking,CASH ADVANCE FEE,20/11/2014,5.90
MENTAL HEALTH,Legal Services-Other,HMCOURTS-SERVICE.G,14/11/2014,40.00
MENTAL HEALTH,Legal Services-Other,HMCOURTS-SERVICE.G,14/11/2014,20.00
MENTAL HEALTH,Legal Services-Other,HMCOURTS-SERVICE.G,20/11/2014,40.00
MENTAL HEALTH,Legal Services-Other,HMCOURTS-SERVICE.G,20/11/2014,60.00
MENTAL HEALTH,Legal Services-Other,HMCOURTS-SERVICE.G,20/11/2014,60.00
MENTAL HEALTH,Legal Services-Other,HMCOURTS-SERVICE.G,20/11/2014,40.00
MENTAL HEALTH,Legal Services-Other,HMCOURTS-SERVICE.G,20/11/2014,20.00
MENTAL HEALTH,Legal Services-Other,HMCOURTS-SERVICE.G,20/11/2014,60.00
MENTAL HEALTH,Legal Services-Other,HMCOURTS-SERVICE.G,20/11/2014,60.00
MENTAL HEALTH,Legal Services-Other,HMCOURTS-SERVICE.G,20/11/2014,20.00
MENTAL HEALTH,Legal Services-Other,HMCOURTS-SERVICE.G,20/11/2014,60.00
MENTAL HEALTH,Legal Services-Other,HMCOURTS-SERVICE.G,20/11/2014,40.00
MENTAL HEALTH,Legal Services-Other,HMCOURTS-SERVICE.G,20/11/2014,20.00
MENTAL HEALTH,Mail Services-Postage,POST OFFICE COUNTER,14/11/2014,12.80
MENTAL HEALTH,Professional & Advisory Services,TRFSA *THOMSONREUTERS,14/11/2014,450.00
MENTAL HEALTH,Taxi Fares,MINI CAB,14/11/2014,133.67
MENTAL HEALTH,Taxi Fares,MINI CAB,14/11/2014,102.17
MENTAL HEALTH,Travel/Subsistence,LONDON & SOUTH EAS,14/11/2014,43.50
MENTAL HEALTH,Travel/Subsistence,LONDON & SOUTH EAS,14/11/2014,106.50
MENTAL HEALTH,Travel/Subsistence,LONDON & SOUTH EAS,20/11/2014,14.00
MENTAL HEALTH,Financial Services,HSBC/M&S BRIXTON,02/10/2014,200.00
MENTAL HEALTH,Financial Services,HSBC/M&S BRIXTON,31/10/2014,200.00
MENTAL HEALTH,Financial Services,NATWEST BANK /,02/10/2014,200.00
MENTAL HEALTH,Financial Services,NATWEST BANK /,31/10/2014,200.00
MENTAL HEALTH,Financial Services-Banking,CASH ADVANCE FEE,14/08/2014,4.43
MENTAL HEALTH,Financial Services-Banking,CASH ADVANCE FEE,14/08/2014,5.90
MENTAL HEALTH,Financial Services-Banking,CASH ADVANCE FEE,02/10/2014,5.90
MENTAL HEALTH,Financial Services-Banking,CASH ADVANCE FEE,02/10/2014,5.90
MENTAL HEALTH,Financial Services-Banking,CASH ADVANCE FEE,31/10/2014,5.90
MENTAL HEALTH,Financial Services-Banking,CASH ADVANCE FEE,31/10/2014,5.90
MENTAL HEALTH,Financial Services-Grants,CHILD POVERTY,02/10/2014,49.99
MENTAL HEALTH,Legal Services-Other,HMCOURTS-SERVICE.G,05/08/2014,40.00
MENTAL HEALTH,Legal Services-Other,HMCOURTS-SERVICE.G,02/10/2014,20.00
MENTAL HEALTH,Legal Services-Other,HMCOURTS-SERVICE.G,02/10/2014,40.00
MENTAL HEALTH,Legal Services-Other,HMCOURTS-SERVICE.G,02/10/2014,40.00
MENTAL HEALTH,Legal Services-Other,HMCOURTS-SERVICE.G,02/10/2014,20.00
MENTAL HEALTH,Legal Services-Other,HMCOURTS-SERVICE.G,02/10/2014,20.00
MENTAL HEALTH,Legal Services-Other,HMCOURTS-SERVICE.G,02/10/2014,20.00
MENTAL HEALTH,Legal Services-Other,HMCOURTS-SERVICE.G,02/10/2014,40.00
MENTAL HEALTH,Legal Services-Other,HMCOURTS-SERVICE.G,02/10/2014,40.00
MENTAL HEALTH,Legal Services-Other,HMCOURTS-SERVICE.G,31/10/2014,20.00
MENTAL HEALTH,Legal Services-Other,HMCOURTS-SERVICE.G,31/10/2014,20.00
MENTAL HEALTH,Legal Services-Other,HMCOURTS-SERVICE.G,31/10/2014,20.00
MENTAL HEALTH,Legal Services-Other,HMCOURTS-SERVICE.G,31/10/2014,60.00
MENTAL HEALTH,Legal Services-Other,HMCOURTS-SERVICE.G,31/10/2014,20.00
MENTAL HEALTH,Legal Services-Other,HMCOURTS-SERVICE.G,31/10/2014,60.00
MENTAL HEALTH,Legal Services-Other,HMCOURTS-SERVICE.G,31/10/2014,20.00
MENTAL HEALTH,Mail Services-Postage,POST OFFICE COUNTER,31/10/2014,46.68
MENTAL HEALTH,Travel/Subsistence,LONDON & SOUTH EAS,02/10/2014,166.00
MENTAL HEALTH,Travel/Subsistence,LONDON & SOUTH EAS,02/10/2014,-142.00
MENTAL HEALTH,Travel/Subsistence,LONDON & SOUTH EAS,31/10/2014,14.00
MENTAL HEALTH,Travel/Subsistence,LONDON & SOUTH EAS,31/10/2014,27.00
MENTAL HEALTH,Travel/Subsistence,OYSTER AUTOTOPUP,02/10/2014,20.00
OLDER PEOPLE,Catering Equipment,CURRYS T/SALES,17/10/2014,433.98
OLDER PEOPLE,Catering Equipment,J & S COMPANY,06/08/2014,490.00
OLDER PEOPLE,Catering Equipment,J & S COMPANY,06/08/2014,450.33
OLDER PEOPLE,Catering Equipment,WWW.NISBETS.COM,05/12/2014,152.76
OLDER PEOPLE,Catering Food & Drink,DOMBEY WHOLESALE BUTCH,26/09/2014,72.69
OLDER PEOPLE,Catering Food & Drink,DOMBEY WHOLESALE BUTCH,05/11/2014,86.47
OLDER PEOPLE,Catering Food & Drink,DOMBEY WHOLESALE BUTCH,30/12/2014,106.35
OLDER PEOPLE,Catering Food & Drink,FISH BARGAIN WAREHOUSE,18/11/2014,83.79
OLDER PEOPLE,Catering Food & Drink,FISH BARGAIN WAREHOUSE,22/12/2014,26.90
OLDER PEOPLE,Catering Food & Drink,FRESH QUALITY HALAL BU,10/10/2014,104.00
OLDER PEOPLE,Catering Food & Drink,FRESH QUALITY HALAL BU,05/11/2014,267.00
OLDER PEOPLE,Catering Food & Drink,FRESH QUALITY HALAL BU,30/12/2014,23.90
OLDER PEOPLE,Catering Food & Drink,ICELAND,26/09/2014,115.01
OLDER PEOPLE,Catering Food & Drink,ICELAND,14/10/2014,26.50
OLDER PEOPLE,Catering Food & Drink,MAKRO SELF SERVICE CROYDO,02/10/2014,282.75
OLDER PEOPLE,Catering Food & Drink,MAKRO SELF SERVICE CROYDO,02/10/2014,250.00
OLDER PEOPLE,Catering Food & Drink,MAKRO SELF SERVICE CROYDO,16/10/2014,393.15
OLDER PEOPLE,Catering Food & Drink,MAKRO SELF SERVICE CROYDO,06/11/2014,415.82
OLDER PEOPLE,Catering Food & Drink,MAKRO SELF SERVICE CROYDO,09/12/2014,292.12
OLDER PEOPLE,Catering Food & Drink,MAKRO SELF SERVICE CROYDO,21/11/2014,223.14
OLDER PEOPLE,Catering Food & Drink,MAKRO SELF SERVICE CROYDO,09/12/2014,146.16
OLDER PEOPLE,Catering Food & Drink,MAKRO SELF SERVICE CROYDO,09/12/2014,349.47
OLDER PEOPLE,Financial Services,ATM BARCLAYS BANK PLC,05/11/2014,400.00
OLDER PEOPLE,Financial Services,ATM BARCLAYS BANK PLC,05/12/2014,300.00
OLDER PEOPLE,Financial Services,CASH ADVANCE FEE,01/10/2014,7.38
OLDER PEOPLE,Financial Services,HSBC/CROYDON NE E1,01/10/2014,250.00
OLDER PEOPLE,Financial Services,SANTANDER PLC (UK),10/10/2014,250.00
OLDER PEOPLE,Financial Services-Banking,CASH ADVANCE FEE,13/10/2014,7.38
OLDER PEOPLE,Financial Services-Banking,CASH ADVANCE FEE,06/11/2014,11.80
OLDER PEOPLE,Financial Services-Banking,CASH ADVANCE FEE,08/12/2014,8.85
OLDER PEOPLE,Food/refreshment - meetings,DOMBEY WHOLESALE BUTCH,05/12/2014,74.49
OLDER PEOPLE,Utilities,TV LICENSING,16/10/2014,145.50
OLDER PEOPLE,Use of Public Transport,MEDI CALL SOUTHERN,08/08/2014,400.00
OTHER - ADULTS,Use of Public Transport,OYSTER AUTOTOPUP,28/09/2014,20.00
OTHER - ADULTS,Catering Food & Drink,THE BRIX,05/12/2014,320.00
OTHER - ADULTS,Stationery,Amazon EU,18/09/2014,50.14
OTHER - ADULTS,Accommodation,PREMIER INN44512655,17/11/2014,120.63
OTHER - ADULTS,Cycles Purchase,HALFORDS 0716,05/12/2014,16.00
OTHER - ADULTS,IT Consumables,CABLING4LESS,06/08/2014,16.49
OTHER - ADULTS,Vehicle Parts,HALFORDS 0716,14/08/2014,140.00
OTHER - ADULTS,Catering Food & Drink,TESCO STORE 2143,02/09/2014,17.07
OTHER - ADULTS,Cleaning-Specialist,WWW.AFFORDABLEGROUP.CO,22/10/2014,15.59
OTHER - ADULTS,Domestic Goods-Other,MORLEYS,10/10/2014,25.00
OTHER - ADULTS,Education-Library Books,Amazon *Mktplce EU-UK,13/11/2014,24.90
OTHER - ADULTS,Education-Library Books,Amazon *Mktplce EU-UK,13/11/2014,15.77
OTHER - ADULTS,Facilities-Printing,Amazon EU,13/11/2014,29.11
OTHER - ADULTS,Facilities-Printing,Amazon EU,13/11/2014,65.00
OTHER - ADULTS,Facilities-Printing,Amazon EU,14/11/2014,16.66
OTHER - ADULTS,Haulage,HANDY MOVES,10/10/2014,110.16
OTHER - ADULTS,Letting Agents,BIZSPACE INVESTMEN,10/10/2014,497.28
OTHER - ADULTS,Mail Services-Postage,SUPERDRUG STORES PLC,13/11/2014,22.32
OTHER - ADULTS,Stationery,THE SUPER MARKET OL V/T,10/10/2014,107.76
OTHER - ADULTS,Banquet & Catering,WWW.EVENTSUPPLIES.CO.U,07/10/2014,76.95
OTHER - ADULTS,Building-Electrical,FARNELL INTERNET,02/08/2014,65.64
OTHER - ADULTS,Catering Food & Drink,TESCO STORE 2143,08/12/2014,53.81
OTHER - ADULTS,Catering Food & Drink,TESCO STORE 2143,08/12/2014,134.41
OTHER - ADULTS,Domestic Goods-Other,ARGOS RETAIL GROUP,27/08/2014,208.94
OTHER - ADULTS,Domestic Goods-Other,ARGOS RETAIL GROUP,16/11/2014,252.16
OTHER - ADULTS,Domestic Goods-Other,Amazon *Mktplce EU-UK,10/10/2014,37.88
OTHER - ADULTS,Domestic Goods-Other,MORLEYS,08/12/2014,2.50
OTHER - ADULTS,Education-Library Books,Amazon *Mktplce EU-UK,16/11/2014,63.63
OTHER - ADULTS,Education-Library Books,Amazon *Mktplce EU-UK,16/11/2014,-63.63
OTHER - ADULTS,Education-Library Books,Amazon *Mktplce EU-UK,16/11/2014,67.98
OTHER - ADULTS,Education-Other,PAYPAL *ECOSYSTEMSI,29/12/2014,149.00
SENIOR MANAGEMENT - ADULTS & PUBLIC HEALTH,Consultancy-Other,LAING & BUISSON,22/08/2014,99.00
SENIOR MANAGEMENT - ADULTS & PUBLIC HEALTH,Education-Library Books,Amazon *Mktplce EU-UK,03/09/2014,25.32
SENIOR MANAGEMENT - ADULTS & PUBLIC HEALTH,Taxi Fares,MINI CAB,20/08/2014,244.17
SENIOR MANAGEMENT - ADULTS & PUBLIC HEALTH,Taxi Fares,WWW.ADDISONLEE.COM,06/10/2014,17.70
SENIOR MANAGEMENT - ADULTS & PUBLIC HEALTH,Taxi Fares,WWW.ADDISONLEE.COM,02/10/2014,242.71
BALANCE SHEET,VAT,Amazon EU,23/10/2014,1.51
BALANCE SHEET,VAT,SPEEDY STAMPS LTD,26/11/2014,9.13
BALANCE SHEET,VAT,WWW.INSTANTPRINT.C,26/11/2014,0.83
BALANCE SHEET,VAT,BRIX CENTRAL STOP,15/08/2014,0.00
BALANCE SHEET,VAT,BRIX CENTRAL STOP,24/09/2014,0.00
BALANCE SHEET,VAT,BRIX CENTRAL STOP,24/09/2014,0.00
BALANCE SHEET,VAT,BRIX CENTRAL STOP,24/09/2014,0.00
BALANCE SHEET,VAT,BRIX CENTRAL STOP,24/09/2014,0.00
BALANCE SHEET,VAT,HILTON,26/11/2014,15.67
BALANCE SHEET,VAT,LAW SOCIETY FINANC,06/11/2014,81.00
BALANCE SHEET,VAT,MBL SEMINARS,06/11/2014,96.00
BALANCE SHEET,VAT,RADISSON BLU HOTEL,06/11/2014,29.66
BALANCE SHEET,VAT,SACAT MARKS & SPENCER,24/09/2014,0.00
BALANCE SHEET,VAT,WWW.ARK-GROUP.COM,24/09/2014,19.00
BALANCE SHEET,VAT,CAPITA BUSINESS SERVS,28/11/2014,175.00
BALANCE SHEET,VAT,Amazon *Mktplce EU-UK,12/12/2014,83.30
BALANCE SHEET,VAT,Amazon EU,05/11/2014,5.50
BALANCE SHEET,VAT,Amazon EU,14/11/2014,3.33
BALANCE SHEET,VAT,WWW.EVENTSUPPLIES.CO.U,07/10/2014,15.39
BALANCE SHEET,VAT,Amazon *Mktplce EU-UK,06/11/2014,0.00
BALANCE SHEET,VAT,Amazon *Mktplce EU-UK,13/11/2014,0.00
BALANCE SHEET,VAT,Amazon *Mktplce EU-UK,14/11/2014,0.00
BALANCE SHEET,VAT,Amazon *Mktplce EU-UK,14/11/2014,0.00
BALANCE SHEET,VAT,Amazon *Mktplce EU-UK,14/11/2014,0.00
BALANCE SHEET,VAT,Amazon *Mktplce EU-UK,14/11/2014,0.00
BALANCE SHEET,VAT,Amazon *Mktplce EU-UK,13/11/2014,0.00
BALANCE SHEET,VAT,Amazon *Mktplce EU-UK,02/10/2014,0.00
BALANCE SHEET,VAT,Amazon *Mktplce EU-UK,13/11/2014,0.00
BALANCE SHEET,VAT,Amazon *Mktplce EU-UK,13/11/2014,0.00
BALANCE SHEET,VAT,Amazon *Mktplce EU-UK,13/11/2014,0.00
BALANCE SHEET,VAT,Amazon *Mktplce EU-UK,24/11/2014,0.00
BALANCE SHEET,VAT,Amazon *Mktplce EU-UK,16/11/2014,0.00
BALANCE SHEET,VAT,Amazon *Mktplce EU-UK,18/11/2014,0.00
BALANCE SHEET,VAT,Amazon *Mktplce EU-UK,04/08/2014,0.00
BALANCE SHEET,VAT,Amazon *Mktplce EU-UK,04/08/2014,0.00
BALANCE SHEET,VAT,Amazon *Mktplce EU-UK,06/08/2014,0.00
BALANCE SHEET,VAT,Amazon *Mktplce EU-UK,14/11/2014,0.00
BALANCE SHEET,VAT,Amazon *Mktplce EU-UK,20/10/2014,0.00
BALANCE SHEET,VAT,Amazon *Mktplce EU-UK,20/10/2014,0.00
BALANCE SHEET,VAT,Amazon *Mktplce EU-UK,16/10/2014,0.00
BALANCE SHEET,VAT,Amazon EU,06/11/2014,0.00
BALANCE SHEET,VAT,Amazon EU,20/10/2014,0.00
BALANCE SHEET,VAT,Amazon EU,25/11/2014,0.00
BALANCE SHEET,VAT,Amazon EU,18/10/2014,0.00
BALANCE SHEET,VAT,Amazon EU,20/10/2014,0.00
BALANCE SHEET,VAT,Amazon EU,09/12/2014,3.64
BALANCE SHEET,VAT,B & M RETAIL,27/11/2014,0.00
BALANCE SHEET,VAT,CASH ADVANCE FEE,10/09/2014,0.00
BALANCE SHEET,VAT,CASH ADVANCE FEE,23/10/2014,0.00
BALANCE SHEET,VAT,CASH ADVANCE FEE,23/10/2014,0.00
BALANCE SHEET,VAT,CASH ADVANCE FEE,23/10/2014,0.00
BALANCE SHEET,VAT,CASH ADVANCE FEE,15/12/2014,0.00
BALANCE SHEET,VAT,ROYAL BANK UK /,09/09/2014,0.00
BALANCE SHEET,VAT,ROYAL BANK UK /,20/08/2014,0.00
BALANCE SHEET,VAT,TESCO STORE 2764,29/08/2014,0.00
BALANCE SHEET,VAT,TESCO STORE 2764,11/09/2014,0.00
BALANCE SHEET,VAT,TESCO STORE 2764,22/08/2014,0.00
BALANCE SHEET,VAT,TESCO STORE 2764,29/09/2014,16.25
BALANCE SHEET,VAT,TESCO STORE 2764,01/10/2014,56.36
BALANCE SHEET,VAT,TESCO STORE 2764,01/10/2014,0.00
BALANCE SHEET,VAT,THE COUNCIL FOR MUSIC,22/10/2014,23.40
BALANCE SHEET,VAT,THE COUNCIL FOR MUSIC,07/11/2014,23.40
BALANCE SHEET,VAT,TV LICENSING,26/11/2014,0.00
BALANCE SHEET,VAT,WM MORRISON PLC,15/09/2014,0.00
BALANCE SHEET,VAT,PARTRIDGE & PRINT,08/09/2014,3.00
BALANCE SHEET,VAT,WWW.ROMPALIMITED.COM,08/09/2014,203.69
BALANCE SHEET,VAT,IKEA ONLINE,05/08/2014,39.83
BALANCE SHEET,VAT,99P STORES LTD,05/12/2014,1.15
BALANCE SHEET,VAT,ARGOS,12/09/2014,3.16
BALANCE SHEET,VAT,Amazon EU,20/11/2014,2.50
BALANCE SHEET,VAT,CHARFLEETBI,17/11/2014,66.50
BALANCE SHEET,VAT,POUNDLAND LTD 1203,05/12/2014,0.67
BALANCE SHEET,VAT,CITB,20/11/2014,5.00
BALANCE SHEET,VAT,CITB,20/11/2014,10.00
BALANCE SHEET,VAT,CITB,20/11/2014,5.00
BALANCE SHEET,VAT,CITB,20/11/2014,20.00
BALANCE SHEET,VAT,CITB,20/11/2014,10.00
BALANCE SHEET,VAT,CITB,20/11/2014,5.00
BALANCE SHEET,VAT,CITB,18/12/2014,5.00
BALANCE SHEET,VAT,CITB,18/12/2014,5.00
BALANCE SHEET,VAT,CTR FOR ECONOMIC /,20/11/2014,38.00
BALANCE SHEET,VAT,HIGH STREET VOUCHE,15/10/2014,0.71
BALANCE SHEET,VAT,IBIS CARDIFF CITY CENTRE,05/11/2014,24.83
BALANCE SHEET,VAT,IBIS CARDIFF CITY CENTRE,05/11/2014,8.32
BALANCE SHEET,VAT,IBIS CARDIFF CITY CENTRE,05/11/2014,15.49
BALANCE SHEET,VAT,MINI CAB,10/09/2014,5.34
BALANCE SHEET,VAT,MINI CAB,10/09/2014,1.94
BALANCE SHEET,VAT,MINI CAB,15/10/2014,0.83
BALANCE SHEET,VAT,MINI CAB,20/11/2014,6.35
BALANCE SHEET,VAT,MINI CAB,20/11/2014,3.08
BALANCE SHEET,VAT,MINI CAB,20/11/2014,2.17
BALANCE SHEET,VAT,MINI CAB,20/11/2014,1.93
BALANCE SHEET,VAT,MINI CAB,18/12/2014,2.17
BALANCE SHEET,VAT,MINI CAB,18/12/2014,3.27
BALANCE SHEET,VAT,MINI CAB,18/12/2014,4.34
BALANCE SHEET,VAT,MORLEYS,15/10/2014,2.25
BALANCE SHEET,VAT,WWW.ADDISONLEE.COM,05/08/2014,3.08
BALANCE SHEET,VAT,WWW.ADDISONLEE.COM,06/08/2014,3.08
BALANCE SHEET,VAT,WWW.ADDISONLEE.COM,08/08/2014,0.83
BALANCE SHEET,VAT,WWW.ADDISONLEE.COM,10/09/2014,2.67
BALANCE SHEET,VAT,WWW.ADDISONLEE.COM,10/09/2014,4.53
BALANCE SHEET,VAT,WWW.ADDISONLEE.COM,10/09/2014,2.17
BALANCE SHEET,VAT,WWW.ADDISONLEE.COM,15/10/2014,2.17
BALANCE SHEET,Personal,WWW.THEZINCGROUP.COM,19/12/2014,-0.01
BALANCE SHEET,VAT,PASTDUE CREDIT PDQ,19/12/2014,5.05
BALANCE SHEET,VAT,WWW.PMGLTD.CO.UK,19/12/2014,71.00
BALANCE SHEET,VAT,WWW.THEZINCGROUP.COM,19/12/2014,26.51
BALANCE SHEET,VAT,SOUTHERN ELECTRIC,16/09/2014,24.38
BALANCE SHEET,VAT,UK POWER NETWORKS,23/12/2014,488.90
BALANCE SHEET,VAT,Amazon *Mktplce EU-UK,24/09/2014,0.00
BALANCE SHEET,VAT,Amazon *Mktplce EU-UK,24/09/2014,0.00
BALANCE SHEET,VAT,Amazon *Mktplce EU-UK,23/09/2014,12.87
BALANCE SHEET,VAT,Amazon EU,23/09/2014,24.12
BALANCE SHEET,VAT,Amazon EU,23/09/2014,13.98
BALANCE SHEET,VAT,Amazon EU,23/09/2014,21.33
BALANCE SHEET,VAT,PAYPAL *LE NEWSPAPR,22/10/2014,0.00
BALANCE SHEET,VAT,PAYPAL *LE NEWSPAPR,22/10/2014,0.00
BALANCE SHEET,VAT,TRAINLINE.COM,30/10/2014,0.00
BALANCE SHEET,VAT,TRAINLINE.COM,08/10/2014,0.00
BALANCE SHEET,VAT,TRAINLINE.COM,08/10/2014,0.00
BALANCE SHEET,VAT,TRAINLINE.COM,08/10/2014,0.00
BALANCE SHEET,VAT,TRAINLINE.COM,18/08/2014,0.00
BALANCE SHEET,VAT,Amazon EU,30/12/2014,2.82
BALANCE SHEET,VAT,NOVOTEL LONDON WATERLOO,01/11/2014,31.67
BALANCE SHEET,VAT,SCREWFIX,30/12/2014,1.33
BALANCE SHEET,VAT,SCREWFIX,23/12/2014,5.66
BALANCE SHEET,VAT,TESCO STORES 6231,23/12/2014,0.18
BALANCE SHEET,VAT,TP VAUXHALL,30/12/2014,8.22
BALANCE SHEET,VAT,123-REG.CO.UK,08/10/2014,4.00
BALANCE SHEET,VAT,CTC*CONSTANTCONTACT.COM,08/10/2014,14.73
BALANCE SHEET,VAT,CTC*CONSTANTCONTACT.COM,08/10/2014,16.13
BALANCE SHEET,VAT,DIANA HOTEL,08/10/2014,23.33
BALANCE SHEET,VAT,LONDON&ESSEX NEWSPAPERS,08/10/2014,72.80
BALANCE SHEET,VAT,SOUTHWARK NEWSPAPE,08/10/2014,66.00
BALANCE SHEET,VAT,WANDSWORTH COUNCIL INT,08/10/2014,18.32
BALANCE SHEET,VAT,WWW.ADDISONLEE.COM,08/10/2014,2.60
BALANCE SHEET,VAT,WWW.ADDISONLEE.COM,08/10/2014,5.02
BALANCE SHEET,VAT,AO RETAIL LIMITED,17/12/2014,71.50
BALANCE SHEET,VAT,Amazon EU,15/09/2014,9.36
BALANCE SHEET,VAT,Amazon EU,17/12/2014,6.67
BALANCE SHEET,VAT,CURRYS ONLINE,17/12/2014,31.33
BALANCE SHEET,VAT,IKEA ONLINE,17/12/2014,215.50
BALANCE SHEET,VAT,IKEA ONLINE,17/12/2014,19.55
BALANCE SHEET,VAT,LCBT,15/09/2014,25.00
BALANCE SHEET,VAT,MINI CAB,17/12/2014,3.33
BALANCE SHEET,VAT,MINI CAB,14/11/2014,0.00
BALANCE SHEET,VAT,MINI CAB,14/11/2014,20.43
BALANCE SHEET,VAT,Amazon EU,22/09/2014,2.77
BALANCE SHEET,VAT,Amazon EU,03/10/2014,2.87
BALANCE SHEET,VAT,WWW.PUTNAMS.CO.UK,03/10/2014,5.66
BALANCE SHEET,VAT,TESCO STORES 6239,26/11/2014,1.14
BALANCE SHEET,VAT,ROYAL MAIL GROUP,28/11/2014,52.17
BALANCE SHEET,VAT,SOLACE LTD,21/11/2014,30.00
BALANCE SHEET,VAT,4 PRINT & DESIGN,11/09/2014,6.50
BALANCE SHEET,VAT,ACRE LANE TIMBER LTD,17/10/2014,9.23
BALANCE SHEET,VAT,CitizenMBanksideCOM,17/10/2014,64.16
BALANCE SHEET,VAT,HALFORDS 0716,24/10/2014,4.36
BALANCE SHEET,VAT,OYSTER BUS AUTOTOP,31/08/2014,0.00
BALANCE SHEET,VAT,SAIN - BRIXTON,05/08/2014,0.00
BALANCE SHEET,VAT,Amazon EU,17/09/2014,16.73
BALANCE SHEET,VAT,POUNDLAND LTD 1203,03/12/2014,1.50
BALANCE SHEET,VAT,1&1 INTERNET LIMITED,13/10/2014,11.99
BALANCE SHEET,VAT,ARGOS RETAIL GROUP,16/09/2014,30.64
BALANCE SHEET,VAT,ATG TICKETS,11/12/2014,26.70
BALANCE SHEET,VAT,Amazon EU,18/12/2014,3.31
BALANCE SHEET,VAT,Amazon EU,11/12/2014,11.66
BALANCE SHEET,VAT,BISHOPSMOVE.COM,26/08/2014,31.40
BALANCE SHEET,VAT,CHALKBOARDS,28/11/2014,16.14
BALANCE SHEET,VAT,HANDS FREE COMPUTING,11/12/2014,5.54
BALANCE SHEET,VAT,IKEA ONLINE,27/11/2014,7.75
BALANCE SHEET,VAT,KINGSHIELD PHARMACY,11/12/2014,2.32
BALANCE SHEET,VAT,POUNDLAND LTD 1203,24/09/2014,1.66
BALANCE SHEET,VAT,SPEAK IT SOLUTIONS LTD,11/12/2014,18.59
BALANCE SHEET,VAT,WWW.VERTIBAX.CO.UK,03/11/2014,8.41
BALANCE SHEET,VAT,WWW.VERTIBAX.CO.UK,03/11/2014,8.41
BALANCE SHEET,VAT,ARGOS RETAIL GROUP,15/11/2014,9.96
BALANCE SHEET,VAT,Amazon EU,15/11/2014,10.99
BALANCE SHEET,VAT,HTTP://LOCALITY.ORG.UK,15/11/2014,40.00
BALANCE SHEET,VAT,PAYPAL *SUSTAIN,15/11/2014,5.83
BALANCE SHEET,VAT,TESCO STORES 5999,15/11/2014,6.50
BALANCE SHEET,VAT,WH SMITH,15/11/2014,13.14
BALANCE SHEET,VAT,BT CONFERENCING,25/09/2014,18.65
BALANCE SHEET,VAT,HILTON,19/12/2014,2.25
BALANCE SHEET,VAT,HOLIDAY INNS,19/12/2014,10.00
BALANCE SHEET,VAT,HOLIDAY INNS,19/12/2014,25.17
BALANCE SHEET,VAT,NOMAD WEST COAST L,15/10/2014,1.00
BALANCE SHEET,VAT,PIPERS PROJECTS LTD,15/10/2014,20.00
BALANCE SHEET,VAT,RADISSON BLU HOTEL,19/12/2014,40.99
BALANCE SHEET,VAT,SOLACE LTD,19/12/2014,30.00
BALANCE SHEET,VAT,TRAVELODGE WEBSITE,25/09/2014,105.20
BALANCE SHEET,VAT,WWW.PMGLTD.CO.UK,19/12/2014,79.00
BALANCE SHEET,VAT,WWW.SOLACEENTERPRISES.,19/12/2014,75.00
BALANCE SHEET,VAT,J D SPORTS 651,16/12/2014,0.00
BALANCE SHEET,VAT,LUL TICKET MACHINE,03/10/2014,0.00
BALANCE SHEET,VAT,POST OFFICE COUNTER,16/12/2014,0.00
BALANCE SHEET,VAT,VIKING,07/08/2014,12.19
BALANCE SHEET,VAT,WWW.POSTURITE.CO.UK,07/08/2014,10.00
BALANCE SHEET,VAT,WWW.POSTURITE.CO.UK,29/12/2014,8.49
BALANCE SHEET,VAT,WWW.VERTIBAX.CO.UK,07/08/2014,8.41
BALANCE SHEET,VAT,CHARFLEETBI,26/11/2014,7.50
BALANCE SHEET,VAT,VIKING,09/09/2014,24.91
BALANCE SHEET,VAT,HIGH STREET VOUCHE,15/08/2014,0.00
BALANCE SHEET,VAT,AO RETAIL LIMITED,05/08/2014,162.99
BALANCE SHEET,VAT,ARGOS DIRECT,09/10/2014,136.24
BALANCE SHEET,VAT,IKEA ONLINE,13/10/2014,33.67
BALANCE SHEET,VAT,CASH ADVANCE FEE,19/08/2014,0.00
BALANCE SHEET,VAT,CASH ADVANCE FEE,28/08/2014,0.00
BALANCE SHEET,VAT,CASH ADVANCE FEE,02/09/2014,0.00
BALANCE SHEET,VAT,CASH ADVANCE FEE,17/09/2014,0.00
BALANCE SHEET,VAT,CASH ADVANCE FEE,01/10/2014,0.00
BALANCE SHEET,VAT,CASH ADVANCE FEE,15/10/2014,0.00
BALANCE SHEET,VAT,CASH ADVANCE FEE,28/10/2014,0.00
BALANCE SHEET,VAT,CASH ADVANCE FEE,03/11/2014,0.00
BALANCE SHEET,VAT,CASH ADVANCE FEE,13/11/2014,0.00
BALANCE SHEET,VAT,CASH ADVANCE FEE,24/11/2014,0.00
BALANCE SHEET,VAT,CASH ADVANCE FEE,09/12/2014,0.00
BALANCE SHEET,VAT,CASH ADVANCE FEE,23/12/2014,0.00
BALANCE SHEET,VAT,NEWS AT NINE,19/08/2014,0.00
BALANCE SHEET,VAT,NEWS AT NINE,30/09/2014,0.00
BALANCE SHEET,VAT,NEWS AT NINE,28/10/2014,0.00
BALANCE SHEET,VAT,NEWS AT NINE,24/11/2014,0.00
BALANCE SHEET,VAT,NEWS AT NINE,12/12/2014,0.00
BALANCE SHEET,VAT,PAYPAL *TECINTERACT,15/10/2014,0.00
BALANCE SHEET,VAT,ROYAL BANK UK /,14/10/2014,0.00
BALANCE SHEET,VAT,ROYAL BANK UK /,27/10/2014,0.00
BALANCE SHEET,VAT,ROYAL BANK UK /,21/11/2014,0.00
BALANCE SHEET,VAT,ROYAL BANK UK /,17/12/2014,0.00
BALANCE SHEET,VAT,SAIN - BRIXTON,18/08/2014,0.00
BALANCE SHEET,VAT,SAIN - BRIXTON,27/08/2014,0.00
BALANCE SHEET,VAT,SAIN - BRIXTON,01/09/2014,0.00
BALANCE SHEET,VAT,SAIN - BRIXTON,16/09/2014,0.00
BALANCE SHEET,VAT,SAIN - BRIXTON,30/09/2014,0.00
BALANCE SHEET,VAT,SAIN - BRIXTON,31/10/2014,0.00
BALANCE SHEET,VAT,SAIN - BRIXTON,12/11/2014,0.00
BALANCE SHEET,VAT,SAIN - BRIXTON,08/12/2014,0.00
BALANCE SHEET,VAT,SAIN - BRIXTON,22/12/2014,0.00
BALANCE SHEET,VAT,WWW.FAIRFIELD.CO.UK,12/11/2014,0.00
BALANCE SHEET,VAT,Amazon *Mktplce EU-UK,07/11/2014,9.80
BALANCE SHEET,VAT,Amazon EU,13/08/2014,1.99
BALANCE SHEET,VAT,NOTTINGHAM BELFRY,10/10/2014,37.00
BALANCE SHEET,VAT,ONLINE ERGONOMICS,02/12/2014,29.86
BALANCE SHEET,VAT,WWW.SAFELINCS.CO.UK,17/12/2014,194.83
BALANCE SHEET,Personal,GTR WEB RAIL SALES,01/10/2014,-35.20
BALANCE SHEET,Personal,MIGHTYDEALS.CO.UK,23/10/2014,-16.98
BALANCE SHEET,VAT,ABBEYFORD CAR HIRE,23/10/2014,14.00
BALANCE SHEET,VAT,ARGOS,04/11/2014,4.99
BALANCE SHEET,VAT,ARGOS DIRECT,26/08/2014,225.44
BALANCE SHEET,VAT,ARGOS DIRECT,23/10/2014,21.78
BALANCE SHEET,VAT,GRO HM PASSPORT OFFICE,10/10/2014,4.68
BALANCE SHEET,VAT,GTR WEB RAIL SALES,02/10/2014,17.36
BALANCE SHEET,VAT,JOHN COPLAND & SON,04/11/2014,50.60
BALANCE SHEET,VAT,MIGHTYDEALS.CO.UK,23/10/2014,68.00
BALANCE SHEET,VAT,MK CIVIC OFFICES C,15/10/2014,20.00
BALANCE SHEET,VAT,PREMIER INN44529310,23/10/2014,8.20
BALANCE SHEET,VAT,SLAM NHS FOUNDATION TR,23/10/2014,19.80
BALANCE SHEET,VAT,TAXI FARE BY VERIFONE,30/10/2014,16.79
BALANCE SHEET,VAT,Amazon *Mktplce EU-UK,08/09/2014,1.07
BALANCE SHEET,VAT,Amazon *Mktplce EU-UK,11/09/2014,24.99
BALANCE SHEET,VAT,Amazon EU,18/09/2014,3.96
BALANCE SHEET,VAT,Amazon EU,02/12/2014,6.24
BALANCE SHEET,VAT,CANFORD AUDIO PLC,28/08/2014,11.10
BALANCE SHEET,VAT,SAINSBURYS S/MKTS,25/11/2014,1.31
BALANCE SHEET,VAT,TESCO STORES-2143,11/12/2014,1.42
BALANCE SHEET,VAT,GLASDON U K LTD,26/08/2014,5.83
BALANCE SHEET,VAT,TESCO PFS 2161,15/08/2014,2.13
BALANCE SHEET,VAT,TESCO PFS 2161,16/10/2014,3.73
BALANCE SHEET,VAT,TESCO PFS 2161,16/10/2014,3.80
BALANCE SHEET,VAT,TESCO PFS 2161,27/11/2014,2.96
BALANCE SHEET,VAT,HANDS FREE COMPUTING,12/09/2014,5.12
BALANCE SHEET,VAT,LIDL UK,27/11/2014,0.29
BALANCE SHEET,VAT,MORLEYS,05/09/2014,5.42
BALANCE SHEET,VAT,WWW.CHRONOS.LTD.UK,11/12/2014,5.20
BALANCE SHEET,VAT,ARCO LTD,11/09/2014,72.13
BALANCE SHEET,VAT,ARCO LTD,01/10/2014,43.83
BALANCE SHEET,VAT,C BEST LTD,28/11/2014,158.40
BALANCE SHEET,VAT,CASH ADVANCE FEE,26/11/2014,0.00
BALANCE SHEET,VAT,COSTCO,25/11/2014,42.00
BALANCE SHEET,VAT,FORTRESS LOCK AND SAFE CO,08/10/2014,74.21
BALANCE SHEET,VAT,FORTRESS LOCK AND SAFE CO,10/12/2014,34.63
BALANCE SHEET,VAT,KEY INDUSTRIAL EQUIPMENT,10/11/2014,38.00
BALANCE SHEET,VAT,TP BALHAM HILL,17/12/2014,6.88
BALANCE SHEET,VAT,TP TRADING CO LTD,17/12/2014,2.58
BALANCE SHEET,VAT,WIDE LOYAL INTERNA,10/12/2014,140.40
BALANCE SHEET,VAT,WIDE LOYAL INTERNA,27/11/2014,168.58
BALANCE SHEET,VAT,Amazon EU,11/11/2014,26.54
BALANCE SHEET,VAT,SGN CONNECTIONS,25/11/2014,172.40
BALANCE SHEET,VAT,THE PRINTING PEOPLE LT,11/09/2014,99.60
BALANCE SHEET,VAT,UK TRAINING WORLDWIDE LTD,05/11/2014,107.60
BALANCE SHEET,VAT,TESCO STORES-2143,11/09/2014,1.44
BALANCE SHEET,VAT,LEBERN LTD,22/08/2014,166.67
BALANCE SHEET,VAT,PREMIER INN 44033690,22/08/2014,118.50
BALANCE SHEET,VAT,WP-INTERVIEWGOLD,03/11/2014,39.00
BALANCE SHEET,VAT,CABLING4LESS,06/08/2014,3.30
BALANCE SHEET,Personal,DOMBEY WHOLESALE BUTCH,10/10/2014,-73.83
BALANCE SHEET,VAT,FAST KEY SERVICES,15/10/2014,14.63
BALANCE SHEET,VAT,FAST KEY SERVICES,14/11/2014,2.04
BALANCE SHEET,VAT,LAING & BUISSON,22/08/2014,19.80
BALANCE SHEET,VAT,MINI CAB,20/08/2014,48.83
BALANCE SHEET,VAT,THE BRIX,05/12/2014,64.00
BALANCE SHEET,VAT,WWW.ADDISONLEE.COM,06/10/2014,3.55
BALANCE SHEET,VAT,PREMIER INN44512655,17/11/2014,24.12
BALANCE SHEET,VAT,WWW.ADDISONLEE.COM,02/10/2014,48.54
BALANCE SHEET,VAT,SCREWFIX DIRECT,23/09/2014,36.52
BALANCE SHEET,VAT,SCREWFIX DIRECT,18/12/2014,70.18
BALANCE SHEET,VAT,WWW.EUREKADIRECT.CO.UK,24/11/2014,17.18
BALANCE SHEET,VAT,ALLIED VEHICLES,17/12/2014,0.00
BALANCE SHEET,VAT,ARGOS,18/12/2014,8.16
BALANCE SHEET,VAT,ARGOS DIRECT,12/12/2014,0.00
BALANCE SHEET,VAT,HIGH STREET VOUCHE,11/08/2014,32.70
BALANCE SHEET,VAT,HIGH STREET VOUCHE,21/08/2014,0.00
BALANCE SHEET,VAT,THE LONSDALE HOTEL,12/12/2014,23.00
BALANCE SHEET,VAT,TNT UK LTD,14/08/2014,0.00
BALANCE SHEET,VAT,VIKING,09/12/2014,10.16
BALANCE SHEET,VAT,VIKING,17/12/2014,45.57
CHILDREN LEGAL SERVICES,Legal Services-Other,GROUP SERVICES,15/10/2014,"13,851.06"
CHILDREN LOOKED AFTER,Travel/Subsistence,BRITISH A 1258516592773,29/09/2014,773.26
CHILDREN LOOKED AFTER,Travel/Subsistence,BRITISH A 1258516593045,29/09/2014,220.00
CHILDREN LOOKED AFTER,Travel/Subsistence,EASYJET 000EN81Q9X,29/09/2014,54.05
CHILDREN LOOKED AFTER,Stationery,WWW.BAAF.ORG.UK,02/10/2014,207.52
CHILDREN LOOKED AFTER,Travel/Subsistence,VIR ATL 2164667934,22/12/2014,"1,096.74"
CHILDREN LOOKED AFTER,Domestic Goods-Other,ARGOS,04/11/2014,20.00
CHILDREN LOOKED AFTER,Legal Services-General Support,JOHN COPLAND & SON,04/11/2014,337.35
CHILDREN LOOKED AFTER,Taxi Fares,BOUNDS TAXIS (NORT,06/11/2014,12.10
CHILDREN LOOKED AFTER,Taxi Fares,BOUNDS TAXIS (NORT,07/11/2014,12.10
CHILDREN LOOKED AFTER,Arts & Leisure Services,ROYAL NATIONAL THEATRE,22/09/2014,104.00
CHILDREN LOOKED AFTER,Domestic Goods-Other,ARGOS,22/09/2014,32.27
CHILDREN LOOKED AFTER,Domestic Goods-Other,ARGOS RETAIL GROUP,22/09/2014,244.31
CHILDREN LOOKED AFTER,Domestic Goods-Other,ARGOS RETAIL GROUP,03/10/2014,215.87
CHILDREN LOOKED AFTER,Domestic Goods-Other,WWW.PUTNAMS.CO.UK,03/10/2014,28.30
CHILDREN LOOKED AFTER,Healthcare Equipment,Amazon EU,22/09/2014,13.83
CHILDREN LOOKED AFTER,Organised Activities,MILE END CLIMBING WALL,15/10/2014,135.00
CHILDREN LOOKED AFTER,Sports Equipment,SPORTSDIRECT.COM,22/09/2014,189.70
CHILDREN LOOKED AFTER,Domestic Goods-Other,AO RETAIL LIMITED,05/08/2014,814.99
CHILDREN LOOKED AFTER,Domestic Goods-Other,ARGOS,14/10/2014,72.16
CHILDREN LOOKED AFTER,Education-Library Books,Amazon *Mktplce EU-UK,20/11/2014,64.85
CHILDREN LOOKED AFTER,Financial Services,HM PASSPORT OFFICE,14/10/2014,72.50
CHILDREN LOOKED AFTER,Professional subscriptions,Amazon EU,15/11/2014,124.96
CHILDREN LOOKED AFTER,Professional subscriptions,Amazon EU,15/11/2014,60.83
CHILDREN LOOKED AFTER,Stationery,CHARFLEETBI,10/11/2014,222.96
CHILDREN LOOKED AFTER,Financial Services,GRO HM PASSPORT OFFICE,21/08/2014,9.25
CHILDREN LOOKED AFTER,Financial Services,GRO HM PASSPORT OFFICE,21/08/2014,9.25
CHILDREN LOOKED AFTER,Cycles Purchase,FUSION MOTORCYCLE TRAI,11/11/2014,89.00
CHILDREN LOOKED AFTER,Travel/Subsistence,GETAROOM.COM,08/10/2014,854.05
CHILDREN LOOKED AFTER,Travel/Subsistence,RYANAIR 22400000UW77R,21/10/2014,806.67
CHILDREN LOOKED AFTER,Accommodation,PREMIER INN44529310,23/10/2014,-8.20
CHILDREN LOOKED AFTER,Companies House Information request,ABBEYFORD CAR HIRE,15/12/2014,-70.00
CHILDREN LOOKED AFTER,Healthcare Services,CELLMARK,15/08/2014,489.60
CHILDREN LOOKED AFTER,Legal Services-Other,GRO HM PASSPORT OFFICE,10/10/2014,18.72
CHILDREN LOOKED AFTER,Vehicle Hire,ABBEYFORD CAR HIRE,23/10/2014,56.00
CHILDREN LOOKED AFTER,Financial Services,GENERAL REGISTER OFFIC,20/11/2014,15.00
CHILDREN LOOKED AFTER,Financial Services,GRO HM PASSPORT OFFICE,20/11/2014,0.00
CHILDREN LOOKED AFTER,Financial Services,GRO HM PASSPORT OFFICE,20/11/2014,18.50
CHILDREN LOOKED AFTER,Accommodation,COMFORT INNS,23/09/2014,135.00
CHILDREN LOOKED AFTER,Accommodation,COMFORT INNS,24/09/2014,-135.00
CHILDREN LOOKED AFTER,Accommodation,JURY INN,09/09/2014,128.00
CHILDREN LOOKED AFTER,Accommodation,THE LONSDALE HOTEL,12/12/2014,92.00
CHILDREN LOOKED AFTER,Accommodation,TRAVEL REPUBLIC LTD,12/09/2014,155.02
CHILDREN LOOKED AFTER,Couriers,TNT UK LTD,14/08/2014,859.67
CHILDREN LOOKED AFTER,Domestic Goods-Other,ARGOS DIRECT,12/12/2014,308.94
CHILDREN LOOKED AFTER,Facilities-Retail,HIGH STREET VOUCHE,18/08/2014,-3.50
CHILDREN LOOKED AFTER,Legal Services-Other,HM PASSPORT OFFICE,08/08/2014,60.50
CHILDREN LOOKED AFTER,Legal Services-Other,LONDON BOROUGH/GRE,05/09/2014,21.61
CHILDREN LOOKED AFTER,Legal Services-Other,NORWICH REGISTER O,11/09/2014,22.00
CHILDREN LOOKED AFTER,Professional subscriptions,EUROSTAR INTERNET,28/11/2014,361.50
CHILDREN LOOKED AFTER,Professional subscriptions,HM PASSPORT OFFICE,17/12/2014,46.00
CHILDREN LOOKED AFTER,Travel/Subsistence,BRITISH A 1258514313119,01/08/2014,907.48
CHILDREN LOOKED AFTER,Travel/Subsistence,EASYJET 000ENHN9TR,11/12/2014,90.23
CHILDREN LOOKED AFTER,Financial Services,LEWISHAM COUNCIL,13/08/2014,10.85
CHILDREN LOOKED AFTER,Domestic Goods-Other,ARGOS,18/12/2014,32.66
CHILDREN LOOKED AFTER,Domestic Goods-Other,MOTHERCARE DIRECT-MOTO,21/08/2014,71.94
CHILDREN LOOKED AFTER,Domestic Goods-Other,ARGOS RETAIL GROUP,08/09/2014,958.91
CHILDREN LOOKED AFTER,Domestic Goods-Other,ARGOS RETAIL GROUP,08/09/2014,173.94
CHILDREN LOOKED AFTER,Domestic Goods-Other,ARGOS RETAIL GROUP,08/09/2014,110.92
CHILDREN LOOKED AFTER,Domestic Goods-Other,ARGOS RETAIL GROUP,08/09/2014,99.98
CHILDREN LOOKED AFTER,Domestic Goods-Other,ARGOS RETAIL GROUP,08/09/2014,219.99
CHILDREN LOOKED AFTER,Furniture-Domestic Furniture,IKEA ONLINE,05/08/2014,199.17
CHILDREN LOOKED AFTER,Domestic Goods-Other,ARGOS RETAIL GROUP,05/08/2014,"1,080.91"
CHILDREN LOOKED AFTER,Furniture-Domestic Furniture,AO RETAIL LIMITED,05/11/2014,776.98
CHILDREN LOOKED AFTER,Furniture-Domestic Furniture,ARGOS DIRECT,05/11/2014,"2,509.68"
CHILDREN LOOKED AFTER,Furniture-Domestic Furniture,ARGOS DIRECT,05/11/2014,83.93
CHILDREN LOOKED AFTER,Furniture-Domestic Furniture,ARGOS DIRECT,05/11/2014,976.34
CHILDREN LOOKED AFTER,Furniture-Domestic Furniture,ARGOS RETAIL GROUP,05/11/2014,535.91
CHILDREN LOOKED AFTER,Furniture-Domestic Furniture,ARGOS RETAIL GROUP,05/11/2014,941.98
CHILDREN LOOKED AFTER,Furniture-Domestic Furniture,ARGOS RETAIL GROUP,05/11/2014,288.94
CHILDREN LOOKED AFTER,Furniture-Domestic Furniture,ARGOS RETAIL GROUP,05/11/2014,44.94
CHILDREN LOOKED AFTER,Furniture-Domestic Furniture,ARGOS RETAIL GROUP,05/11/2014,278.89
CHILDREN LOOKED AFTER,Furniture-Domestic Furniture,BEAUMONT BEDS LTD,05/11/2014,268.90
CHILDREN LOOKED AFTER,Furniture-Domestic Furniture,BUDGET CARPETS 1,05/11/2014,369.00
CHILDREN LOOKED AFTER,Furniture-Domestic Furniture,CARPETRIGHT,05/11/2014,208.64
CHILDREN LOOKED AFTER,Furniture-Domestic Furniture,CURRYS ONLINE,05/11/2014,299.99
CHILDREN LOOKED AFTER,Furniture-Domestic Furniture,CURRYS ONLINE,05/11/2014,369.99
CHILDREN LOOKED AFTER,Furniture-Domestic Furniture,DISCOUNT CARPETS S,05/11/2014,494.00
CHILDREN LOOKED AFTER,Furniture-Office Furniture,CURRYS ONLINE,05/11/2014,64.99
CHILDREN LOOKED AFTER,Furniture-Other,ARGOS RETAIL GROUP,05/08/2014,351.81
CHILDREN LOOKED AFTER,Accommodation,PREMIER INN44521415,17/12/2014,80.00
CHILDREN LOOKED AFTER,Building-Floors,CARPETRIGHT,15/09/2014,298.67
CHILDREN LOOKED AFTER,Domestic Goods-Other,AO RETAIL LIMITED,17/12/2014,357.50
CHILDREN LOOKED AFTER,Domestic Goods-Other,ARGOS LTD,15/09/2014,118.99
CHILDREN LOOKED AFTER,Domestic Goods-Other,ARGOS RETAIL GROUP,15/09/2014,218.93
CHILDREN LOOKED AFTER,Domestic Goods-Other,ARGOS RETAIL GROUP,15/09/2014,"1,090.89"
CHILDREN LOOKED AFTER,Domestic Goods-Other,ARGOS RETAIL GROUP,15/09/2014,438.93
CHILDREN LOOKED AFTER,Domestic Goods-Other,ARGOS RETAIL GROUP,17/12/2014,324.17
CHILDREN LOOKED AFTER,Domestic Goods-Other,ARGOS RETAIL GROUP,17/12/2014,324.17
CHILDREN LOOKED AFTER,Domestic Goods-Other,ARGOS RETAIL GROUP,17/12/2014,643.89
CHILDREN LOOKED AFTER,Domestic Goods-Other,ARGOS RETAIL GROUP,17/12/2014,863.89
CHILDREN LOOKED AFTER,Domestic Goods-Other,ARGOS RETAIL GROUP,17/12/2014,853.89
CHILDREN LOOKED AFTER,Domestic Goods-Other,ARGOS RETAIL GROUP,17/12/2014,"1,392.81"
CHILDREN LOOKED AFTER,Domestic Goods-Other,ARGOS RETAIL GROUP,17/12/2014,"1,075.92"
CHILDREN LOOKED AFTER,Domestic Goods-Other,CURRYS ONLINE,15/09/2014,538.99
CHILDREN LOOKED AFTER,Domestic Goods-Other,CURRYS ONLINE,17/12/2014,156.67
CHILDREN LOOKED AFTER,Domestic Goods-Other,LCBT,15/09/2014,125.00
CHILDREN LOOKED AFTER,Domestic Goods-Other,MOTHERCARE DIRECT-E-CO,15/09/2014,34.99
CHILDREN LOOKED AFTER,Domestic Goods-Other,MOTHERCARE DIRECT-E-CO,15/09/2014,160.18
CHILDREN LOOKED AFTER,Facilities-Printing,Amazon EU,15/09/2014,46.77
CHILDREN LOOKED AFTER,Facilities-Printing,Amazon EU,17/12/2014,33.33
CHILDREN LOOKED AFTER,Financial Services,HM PASSPORT OFFICE,15/09/2014,72.50
CHILDREN LOOKED AFTER,Financial Services,HM PASSPORT OFFICE,15/09/2014,72.50
CHILDREN LOOKED AFTER,Financial Services,HM PASSPORT OFFICE,15/09/2014,72.50
CHILDREN LOOKED AFTER,Financial Services,HM PASSPORT OFFICE,17/12/2014,145.00
CHILDREN LOOKED AFTER,Financial Services,LAMBETH INTERNET PAYM,15/09/2014,124.01
CHILDREN LOOKED AFTER,Furniture-Domestic Furniture,IKEA ONLINE,17/12/2014,"1,077.50"
CHILDREN LOOKED AFTER,Furniture-Domestic Furniture,IKEA ONLINE,17/12/2014,97.75
CHILDREN LOOKED AFTER,Healthcare Services,DR F TOMAS,17/12/2014,169.70
CHILDREN LOOKED AFTER,Taxi Fares,GREYHOUND CARS LTD,17/12/2014,18.37
CHILDREN LOOKED AFTER,Taxi Fares,GREYHOUND CARS LTD,17/12/2014,8.47
CHILDREN LOOKED AFTER,Taxi Fares,MINI CAB,17/12/2014,16.67
CHILDREN LOOKED AFTER,Taxi Fares,MINI CAB,17/12/2014,25.60
CHILDREN LOOKED AFTER,Travel/Subsistence,BRITISH AIRW1255292344171,15/09/2014,282.13
CHILDREN LOOKED AFTER,Travel/Subsistence,EASYJET 000ENHK1RD,17/12/2014,275.36
CHILDREN LOOKED AFTER,Travel/Subsistence,EXPEDIA 16684614655,15/09/2014,2.00
CHILDREN LOOKED AFTER,Travel/Subsistence,FCC WEBSALES,15/09/2014,125.90
CHILDREN LOOKED AFTER,Travel/Subsistence,FCC WEBSALES,15/09/2014,62.90
CHILDREN LOOKED AFTER,Travel/Subsistence,FCC WEBSALES,15/09/2014,248.50
CHILDREN LOOKED AFTER,Travel/Subsistence,FCC WEBSALES,15/09/2014,154.50
CHILDREN LOOKED AFTER,Travel/Subsistence,FCC WEBSALES,15/09/2014,166.70
CHILDREN LOOKED AFTER,Travel/Subsistence,FCC WEBSALES,15/09/2014,122.00
CHILDREN LOOKED AFTER,Travel/Subsistence,FCC WEBSALES,15/09/2014,-119.50
CHILDREN LOOKED AFTER,Travel/Subsistence,FCC WEBSALES,15/09/2014,19.20
CHILDREN LOOKED AFTER,Travel/Subsistence,FCC WEBSALES,15/09/2014,139.10
CHILDREN LOOKED AFTER,Travel/Subsistence,FCC WEBSALES,15/09/2014,376.80
CHILDREN LOOKED AFTER,Travel/Subsistence,NEW SOUTHERN RAILW,15/09/2014,313.20
CHILDREN LOOKED AFTER,Travel/Subsistence,NEW SOUTHERN RAILW,15/09/2014,95.00
CHILDREN LOOKED AFTER,Domestic Goods-Other,ARGOS,22/12/2014,416.40
CHILDREN LOOKED AFTER,Domestic Goods-Other,ARGOS DIRECT,20/11/2014,238.94
CHILDREN LOOKED AFTER,Domestic Goods-Other,ARGOS DIRECT,09/10/2014,681.20
CHILDREN LOOKED AFTER,Education-Arts/Crafts,WWW.BEDSONLEGS.CO.,20/11/2014,199.99
CHILDREN LOOKED AFTER,Education-Arts/Crafts,WWW.BEDSONLEGS.CO.,20/11/2014,-170.99
CHILDREN LOOKED AFTER,Financial Services,HM PASSPORT OFFICE,20/11/2014,72.50
CHILDREN LOOKED AFTER,Furniture-Domestic Furniture,ARGOS RETAIL GROUP,31/12/2014,411.28
CHILDREN LOOKED AFTER,Furniture-Domestic Furniture,ARGOS RETAIL GROUP,31/12/2014,465.93
CHILDREN LOOKED AFTER,Furniture-Domestic Furniture,IKEA ONLINE,13/10/2014,168.33
CHILDREN LOOKED AFTER,Use of Public Transport,EASYJET 000ENG8BK8,26/11/2014,73.42
CHILDREN LOOKED AFTER,Accommodation,TRAVELODGE AGENT,17/12/2014,180.50
CHILDREN SAFEGUARDING & ASSESSMENTS,Domestic Goods-Other,ARGOS DIRECT,26/08/2014,761.95
CHILDREN SAFEGUARDING & ASSESSMENTS,Facilities-Market Research,ARGOS DIRECT,26/08/2014,139.81
CHILDREN SAFEGUARDING & ASSESSMENTS,Furniture-Other,"CLAPHAM,FULHAM & I",13/08/2014,222.48
CHILDREN SAFEGUARDING & ASSESSMENTS,Domestic Goods-Other,ARGOS DIRECT,06/11/2014,170.94
CHILDREN SAFEGUARDING & ASSESSMENTS,Travel/Subsistence,EASYJET 000EN8ZCPG,16/10/2014,436.55
CHILDREN SAFEGUARDING & ASSESSMENTS,Travel/Subsistence,GTR WEB RAIL SALES,02/10/2014,156.24
CHILDREN SAFEGUARDING & ASSESSMENTS,Travel/Subsistence,GTR WEB RAIL SALES,09/10/2014,-276.80
CHILDREN SAFEGUARDING & ASSESSMENTS,Travel/Subsistence,GTR WEB RAIL SALES,01/10/2014,276.80
CHILDREN SAFEGUARDING & ASSESSMENTS,Consultancy-Business,FAST KEY SERVICES,15/10/2014,73.16
CHILDREN SAFEGUARDING & ASSESSMENTS,Stationery,FAST KEY SERVICES,14/11/2014,10.20
CHILDREN SAFEGUARDING & ASSESSMENTS,Vehicle Hire,ALLIED VEHICLES,17/12/2014,995.00
CHILDREN SAFEGUARDING & ASSESSMENTS,Domestic Goods-Other,ARGOS DIRECT,20/11/2014,258.94
CHILDREN SAFEGUARDING & ASSESSMENTS,Domestic Goods-Other,ARGOS DIRECT,06/11/2014,358.92
CHILDREN SAFEGUARDING & ASSESSMENTS,Facilities-Market Research,ARGOS DIRECT,26/08/2014,49.89
CHILDREN SAFEGUARDING & ASSESSMENTS,IT Hardware,Amazon *Mktplce EU-UK,29/09/2014,16.40
CHILDREN SAFEGUARDING & ASSESSMENTS,Legal Services-Other,WWW.WANDSWORTH.GOV.UK,20/08/2014,11.00
CHILDREN SAFEGUARDING & ASSESSMENTS,Domestic Goods-Other,KIDDICARE.COM LTD,19/11/2014,47.96
CHILDREN SAFEGUARDING & ASSESSMENTS,Domestic Goods-Other,ARGOS DIRECT,23/10/2014,87.16
CHILDREN SAFEGUARDING & ASSESSMENTS,Taxi Fares,TAXI FARE BY VERIFONE,30/10/2014,67.16
CHILDREN SAFEGUARDING & ASSESSMENTS,Travel/Subsistence,BRITISH A 1258517711338,28/10/2014,"2,156.08"
CHILDREN SAFEGUARDING & ASSESSMENTS,Travel/Subsistence,BRITISH A 1258517711341,28/10/2014,125.44
CHILDREN SAFEGUARDING & ASSESSMENTS,Vehicle Hire,ABC VAN HIRE LTD,12/12/2014,325.00
CHILDREN SAFEGUARDING & ASSESSMENTS,Vehicle Hire,ABC VAN HIRE LTD,12/12/2014,-250.00
EARLY HELP,IT Consumables,HANDS FREE COMPUTING,11/12/2014,27.67
EARLY HELP,IT Consumables,SPEAK IT SOLUTIONS LTD,11/12/2014,92.94
EARLY HELP,Domestic Goods-Other,Amazon EU,03/10/2014,14.34
EARLY HELP,Catering Food & Drink,TESCO STORES 5999,18/12/2014,334.64
EARLY HELP,Furniture-Office Furniture,WWW.POSTURITE.CO.UK,07/08/2014,50.00
EARLY HELP,Healthcare Equipment,WWW.VERTIBAX.CO.UK,07/08/2014,42.08
EARLY HELP,Stationery,VIKING,07/08/2014,60.93
EARLY HELP,Education-Other,J D SPORTS 651,16/12/2014,500.00
EARLY HELP,Education-Other,POST OFFICE COUNTER,16/12/2014,550.00
EARLY HELP,Furniture-Office Furniture,WWW.POSTURITE.CO.UK,29/12/2014,42.46
EARLY HELP,Travel/Subsistence,LUL TICKET MACHINE,03/10/2014,20.20
EARLY HELP,Catering Food & Drink,TESCO STORE 2143,28/08/2014,125.00
EARLY HELP,Clothing-Uniforms,APT CLOTHING COMPA,03/10/2014,51.96
EARLY HELP,IT Office Equipment,Amazon *Mktplce EU-UK,28/08/2014,22.89
EARLY HELP,Stationery,APT CLOTHING COMPA,20/10/2014,36.99
EARLY YEARS AND PARENTING,Catering Food & Drink,ICELAND,24/09/2014,7.00
EARLY YEARS AND PARENTING,Domestic Goods-Other,ARGOS,27/11/2014,10.49
EARLY YEARS AND PARENTING,Domestic Goods-Other,Amazon *Mktplce EU-UK,27/11/2014,140.99
EARLY YEARS AND PARENTING,Domestic Goods-Other,Amazon EU,11/12/2014,58.33
EARLY YEARS AND PARENTING,Domestic Goods-Other,POUNDLAND LTD 1203,24/09/2014,8.34
EARLY YEARS AND PARENTING,Education-Library Books,Amazon *Mktplce EU-UK,27/11/2014,54.75
EARLY YEARS AND PARENTING,Education-Library Books,Amazon *Mktplce EU-UK,27/11/2014,24.31
EARLY YEARS AND PARENTING,Education-Library Books,Amazon *Mktplce EU-UK,27/11/2014,33.83
EARLY YEARS AND PARENTING,Haulage,BISHOPSMOVE.COM,26/08/2014,163.78
EARLY YEARS AND PARENTING,Healthcare Equipment,WWW.VERTIBAX.CO.UK,03/11/2014,42.08
EARLY YEARS AND PARENTING,Healthcare Equipment,WWW.VERTIBAX.CO.UK,03/11/2014,42.08
EARLY YEARS AND PARENTING,IT Office Equipment,ARGOS,16/09/2014,14.99
EARLY YEARS AND PARENTING,Education-Supplies,Amazon *Mktplce EU-UK,11/12/2014,19.60
EARLY YEARS AND PARENTING,Education-Supplies,KINGSHIELD PHARMACY,11/12/2014,11.66
EARLY YEARS AND PARENTING,Education-Toys,Amazon *Mktplce EU-UK,11/12/2014,88.40
EARLY YEARS AND PARENTING,Education-Toys,IKEA ONLINE,27/11/2014,38.75
EARLY YEARS AND PARENTING,IT Office Equipment,ARGOS RETAIL GROUP,16/09/2014,153.30
EARLY YEARS AND PARENTING,IT Services,1&1 INTERNET LIMITED,13/10/2014,59.97
EARLY YEARS AND PARENTING,Travel/Subsistence,THE TRAINLINE.CO,03/11/2014,36.30
QUALITY ASSURANCE & PERFORMANCE,Facilities-Retail,HIGH STREET VOUCHE,11/08/2014,130.80
QUALITY ASSURANCE & PERFORMANCE,Facilities-Retail,HIGH STREET VOUCHE,21/08/2014,504.25
QUALITY ASSURANCE & PERFORMANCE,Domestic Goods-Other,ARGOS,15/12/2014,29.99
QUALITY ASSURANCE & PERFORMANCE,Professional subscriptions,ARGOS,02/12/2014,18.99
QUALITY ASSURANCE & PERFORMANCE,Facilities-Printing,CHARFLEETBI,26/11/2014,37.50
QUALITY ASSURANCE & PERFORMANCE,Mail Services-Postage,POST OFFICE COUNTER,01/12/2014,372.00
QUALITY ASSURANCE & PERFORMANCE,Mail Services-Postage,POST OFFICE COUNTER,01/12/2014,372.00
QUALITY ASSURANCE & PERFORMANCE,Stationery,VIKING,09/09/2014,124.54
QUALITY ASSURANCE & PERFORMANCE,Accommodation,VISTAPR*VISTAPRINT.UK,13/11/2014,237.43
QUALITY ASSURANCE & PERFORMANCE,Facilities-Printing,VISTAPR*VISTAPRINT.UK,13/11/2014,0.00
QUALITY ASSURANCE & PERFORMANCE,Financial Services,WWW.E-PAYCOBALT.COM,15/09/2014,"1,800.00"
QUALITY ASSURANCE & PERFORMANCE,Travel/Subsistence,EC MAINLINE CO INT,04/08/2014,26.30
QUALITY ASSURANCE & PERFORMANCE,Travel/Subsistence,EC MAINLINE CO INT,12/08/2014,26.10
QUALITY ASSURANCE & PERFORMANCE,Travel/Subsistence,EC MAINLINE CO INT,12/08/2014,99.20
QUALITY ASSURANCE & PERFORMANCE,Travel/Subsistence,EC MAINLINE CO INT,12/08/2014,37.40
QUALITY ASSURANCE & PERFORMANCE,Travel/Subsistence,EC MAINLINE CO INT,22/08/2014,-9.50
QUALITY ASSURANCE & PERFORMANCE,Travel/Subsistence,EC MAINLINE CO INT,15/09/2014,14.40
QUALITY ASSURANCE & PERFORMANCE,Travel/Subsistence,EC MAINLINE CO INT,15/09/2014,46.10
QUALITY ASSURANCE & PERFORMANCE,Travel/Subsistence,EC MAINLINE CO INT,15/09/2014,24.10
QUALITY ASSURANCE & PERFORMANCE,Travel/Subsistence,EC MAINLINE CO INT,15/09/2014,106.00
QUALITY ASSURANCE & PERFORMANCE,Travel/Subsistence,EC MAINLINE CO INT,29/09/2014,331.15
QUALITY ASSURANCE & PERFORMANCE,Travel/Subsistence,EC MAINLINE CO INT,29/09/2014,18.50
QUALITY ASSURANCE & PERFORMANCE,Travel/Subsistence,EC MAINLINE CO INT,29/09/2014,63.30
QUALITY ASSURANCE & PERFORMANCE,Travel/Subsistence,EC MAINLINE CO INT,29/09/2014,82.80
QUALITY ASSURANCE & PERFORMANCE,Travel/Subsistence,EC MAINLINE CO INT,06/11/2014,52.30
QUALITY ASSURANCE & PERFORMANCE,Travel/Subsistence,EC MAINLINE CO INT,06/11/2014,317.40
QUALITY ASSURANCE & PERFORMANCE,Travel/Subsistence,EC MAINLINE CO INT,06/11/2014,-103.50
QUALITY ASSURANCE & PERFORMANCE,Travel/Subsistence,LUL TICKET MACHINE,12/08/2014,100.00
QUALITY ASSURANCE & PERFORMANCE,Travel/Subsistence,LUL TICKET MACHINE,06/11/2014,35.00
QUALITY ASSURANCE & PERFORMANCE,Travel/Subsistence,NEW SOUTHERN RAILW,22/08/2014,50.00
QUALITY ASSURANCE & PERFORMANCE,Travel/Subsistence,NEW SOUTHERN RAILW,29/09/2014,50.00
QUALITY ASSURANCE & PERFORMANCE,Travel/Subsistence,OYSTER AUTOTOPUP,12/08/2014,40.00
QUALITY ASSURANCE & PERFORMANCE,Travel/Subsistence,OYSTER AUTOTOPUP,29/09/2014,40.00
QUALITY ASSURANCE & PERFORMANCE,Travel/Subsistence,OYSTER AUTOTOPUP,06/11/2014,40.00
QUALITY ASSURANCE & PERFORMANCE,Travel/Subsistence,OYSTER BUS AUTOTOP,15/09/2014,40.00
QUALITY ASSURANCE & PERFORMANCE,Travel/Subsistence,OYSTER BUS AUTOTOP,15/09/2014,40.00
QUALITY ASSURANCE & PERFORMANCE,Travel/Subsistence,OYSTER BUS AUTOTOP,29/09/2014,40.00
QUALITY ASSURANCE & PERFORMANCE,Travel/Subsistence,TL RAILWAY TICKETS,29/09/2014,50.00
QUALITY ASSURANCE & PERFORMANCE,Financial Services-Grants,THE WHO CARE TRUST,17/11/2014,13.00
QUALITY ASSURANCE & PERFORMANCE,Travel/Subsistence,EC MAINLINE CO INT,17/11/2014,46.90
QUALITY ASSURANCE & PERFORMANCE,Travel/Subsistence,EC MAINLINE CO INT,17/11/2014,79.70
QUALITY ASSURANCE & PERFORMANCE,Travel/Subsistence,EC MAINLINE CO INT,17/11/2014,42.50
QUALITY ASSURANCE & PERFORMANCE,Travel/Subsistence,LUL TICKET MACHINE,17/11/2014,15.00
QUALITY ASSURANCE & PERFORMANCE,Travel/Subsistence,OYSTER AUTOTOPUP,17/11/2014,40.00
QUALITY ASSURANCE & PERFORMANCE,Travel/Subsistence,OYSTER BUS AUTOTOP,17/11/2014,40.00
QUALITY ASSURANCE & PERFORMANCE,Travel/Subsistence,OYSTER BUS AUTOTOP,17/11/2014,40.00
QUALITY ASSURANCE & PERFORMANCE,Travel/Subsistence,TL RAILWAY TICKETS,17/11/2014,50.00
QUALITY ASSURANCE & PERFORMANCE,Financial Services,WWW.E-PAYCOBALT.COM,11/10/2014,600.00
QUALITY ASSURANCE & PERFORMANCE,Travel/Subsistence,EC MAINLINE CO INT,11/10/2014,46.90
QUALITY ASSURANCE & PERFORMANCE,Travel/Subsistence,EC MAINLINE CO INT,11/10/2014,18.00
QUALITY ASSURANCE & PERFORMANCE,Travel/Subsistence,EC MAINLINE CO INT,11/10/2014,69.00
QUALITY ASSURANCE & PERFORMANCE,Travel/Subsistence,EC MAINLINE CO INT,11/10/2014,36.40
QUALITY ASSURANCE & PERFORMANCE,Travel/Subsistence,OYSTER AUTOTOPUP,11/10/2014,80.00
QUALITY ASSURANCE & PERFORMANCE,Travel/Subsistence,OYSTER BUS AUTOTOP,11/10/2014,40.00
QUALITY ASSURANCE & PERFORMANCE,Travel/Subsistence,LONDON & SOUTH EAS,21/08/2014,18.80
QUALITY ASSURANCE & PERFORMANCE,Arts & Leisure Services,THORPE PARK CC,24/10/2014,328.32
QUALITY ASSURANCE & PERFORMANCE,Financial Services-Grants,WWW.THEWHOCARETRUST.OR,16/10/2014,12.75
QUALITY ASSURANCE & PERFORMANCE,Education-Other,PARTRIDGE & PRINT,08/09/2014,855.00
QUALITY ASSURANCE & PERFORMANCE,Consultancy-Business,SLAM NHS FOUNDATION TR,23/10/2014,79.20
YOUTH OFFENDING SERVICE,Catering Equipment,ARGOS,12/09/2014,15.78
YOUTH OFFENDING SERVICE,Stationery,99P STORES LTD,05/12/2014,5.78
YOUTH OFFENDING SERVICE,Stationery,CHARFLEETBI,17/11/2014,332.50
YOUTH OFFENDING SERVICE,Stationery,POUNDLAND LTD 1203,05/12/2014,3.33
YOUTH OFFENDING SERVICE,Stationery,TESCO STORE 2143,05/12/2014,8.00
YOUTH OFFENDING SERVICE,Telecommunications,Amazon EU,20/11/2014,12.50
YOUTH OFFENDING SERVICE,Travel/Subsistence,LUL TICKET OFFICE.,19/08/2014,100.00
YOUTH OFFENDING SERVICE,Travel/Subsistence,LUL TICKET OFFICE.,14/10/2014,90.00
YOUTH OFFENDING SERVICE,Catering Food & Drink,GRAND UNION,10/12/2014,137.50
YOUTH OFFENDING SERVICE,Catering Food & Drink,GRAND UNION,10/12/2014,47.35
YOUTH OFFENDING SERVICE,Catering Food & Drink,M&S E COMMERCE,13/08/2014,37.00
YOUTH OFFENDING SERVICE,Catering Food & Drink,M&S E COMMERCE,28/08/2014,37.00
YOUTH OFFENDING SERVICE,Catering Food & Drink,M&S E COMMERCE,28/08/2014,37.00
YOUTH OFFENDING SERVICE,Catering Food & Drink,PAYPAL *SUBWAYBRIXT,13/08/2014,39.90
YOUTH OFFENDING SERVICE,Catering Food & Drink,PAYPAL *SUBWAYBRIXT,23/10/2014,-39.90
YOUTH OFFENDING SERVICE,Catering Food & Drink,SUBWAY,23/10/2014,39.90
YOUTH OFFENDING SERVICE,Catering Food & Drink,TESCO STORE 2143,13/08/2014,27.37
YOUTH OFFENDING SERVICE,Catering Food & Drink,TESCO STORE 2143,28/08/2014,13.16
YOUTH OFFENDING SERVICE,Catering Food & Drink,TESCO STORE 2143,22/09/2014,17.17
YOUTH OFFENDING SERVICE,Catering Food & Drink,TESCO STORES-2143,22/09/2014,5.29
YOUTH OFFENDING SERVICE,Travel/Subsistence,LUL TICKET MACHINE,13/08/2014,60.00
YOUTH OFFENDING SERVICE,Travel/Subsistence,LUL TICKET MACHINE,22/09/2014,90.00
YOUTH OFFENDING SERVICE,Travel/Subsistence,LUL TICKET MACHINE,23/10/2014,30.00
YOUTH OFFENDING SERVICE,Travel/Subsistence,LUL TICKET MACHINE,10/12/2014,30.00
YOUTH OFFENDING SERVICE,Travel/Subsistence,LUL TICKET MACHINE,10/12/2014,60.00
EMPLOYMENT & ENTERPRISE - E&L,Accommodation,EBK*EBOOKERS,09/09/2014,157.69
EMPLOYMENT & ENTERPRISE - E&L,Accommodation,IBIS CARDIFF CITY CENTRE,05/11/2014,124.17
EMPLOYMENT & ENTERPRISE - E&L,Accommodation,IBIS CARDIFF CITY CENTRE,05/11/2014,41.63
EMPLOYMENT & ENTERPRISE - E&L,Accommodation,IBIS CARDIFF CITY CENTRE,05/11/2014,77.46
EMPLOYMENT & ENTERPRISE - E&L,Catering Equipment,Amazon *Mktplce EU-UK,18/12/2014,8.99
EMPLOYMENT & ENTERPRISE - E&L,Catering Food & Drink,JACKS SUPERMARKET,18/12/2014,4.69
EMPLOYMENT & ENTERPRISE - E&L,Catering Food & Drink,SACAT MARKS & SPENCER,20/11/2014,36.60
EMPLOYMENT & ENTERPRISE - E&L,Catering Food & Drink,SAINSBURY'S SMKT,18/12/2014,50.00
EMPLOYMENT & ENTERPRISE - E&L,Catering Food & Drink,SAINSBURYS,18/12/2014,2.00
EMPLOYMENT & ENTERPRISE - E&L,Catering Food & Drink,SAINSBURYS S/MKTS,15/10/2014,11.58
EMPLOYMENT & ENTERPRISE - E&L,Catering Food & Drink,SAINSBURYS S/MKTS,15/10/2014,7.14
EMPLOYMENT & ENTERPRISE - E&L,Catering Food & Drink,SAINSBURYS S/MKTS,15/10/2014,2.40
EMPLOYMENT & ENTERPRISE - E&L,Catering Food & Drink,SAINSBURYS S/MKTS,20/11/2014,2.00
EMPLOYMENT & ENTERPRISE - E&L,Catering Food & Drink,SAINSBURYS S/MKTS,18/12/2014,7.48
EMPLOYMENT & ENTERPRISE - E&L,Catering Food & Drink,SAINSBURYS S/MKTS,18/12/2014,8.00
EMPLOYMENT & ENTERPRISE - E&L,Catering Food & Drink,TESCO STORES 2764,15/10/2014,3.20
EMPLOYMENT & ENTERPRISE - E&L,Catering Food & Drink,TESCO STORES 5342,15/10/2014,15.22
EMPLOYMENT & ENTERPRISE - E&L,Catering Food & Drink,TESCO STORES 5342,18/12/2014,2.55
EMPLOYMENT & ENTERPRISE - E&L,Catering Food & Drink,TESCO STORES 5342,18/12/2014,18.11
EMPLOYMENT & ENTERPRISE - E&L,Catering Food & Drink,TESCO STORES 5389,18/12/2014,7.00
EMPLOYMENT & ENTERPRISE - E&L,Catering Food & Drink,TESCO-STORES 6567,18/09/2014,51.73
EMPLOYMENT & ENTERPRISE - E&L,Catering Food & Drink,WAITROSE 789,18/12/2014,10.40
EMPLOYMENT & ENTERPRISE - E&L,Couriers,Amazon Prime,18/12/2014,79.00
EMPLOYMENT & ENTERPRISE - E&L,Domestic Goods-Other,HIGH STREET VOUCHE,15/10/2014,253.54
EMPLOYMENT & ENTERPRISE - E&L,Domestic Goods-Other,HIGH STREET VOUCHE,18/12/2014,404.25
EMPLOYMENT & ENTERPRISE - E&L,Domestic Goods-Other,MORLEYS,15/10/2014,11.25
EMPLOYMENT & ENTERPRISE - E&L,Education-Library Books,Amazon *Mktplce EU-UK,20/11/2014,6.50
EMPLOYMENT & ENTERPRISE - E&L,Education-Library Books,Amazon *Mktplce EU-UK,18/12/2014,32.99
EMPLOYMENT & ENTERPRISE - E&L,Education-Other,CITB,20/11/2014,25.00
EMPLOYMENT & ENTERPRISE - E&L,Education-Other,CITB,20/11/2014,50.00
EMPLOYMENT & ENTERPRISE - E&L,Education-Other,CITB,20/11/2014,25.00
EMPLOYMENT & ENTERPRISE - E&L,Education-Other,CITB,20/11/2014,100.00
EMPLOYMENT & ENTERPRISE - E&L,Education-Other,CITB,20/11/2014,50.00
EMPLOYMENT & ENTERPRISE - E&L,Education-Other,CITB,20/11/2014,25.00
EMPLOYMENT & ENTERPRISE - E&L,Education-Other,CITB,18/12/2014,25.00
EMPLOYMENT & ENTERPRISE - E&L,Education-Other,CITB,18/12/2014,25.00
EMPLOYMENT & ENTERPRISE - E&L,Education-Other,CTR FOR ECONOMIC /,20/11/2014,190.00
EMPLOYMENT & ENTERPRISE - E&L,Financial Services-Grants,Sainsburys S/mkts,20/11/2014,40.00
EMPLOYMENT & ENTERPRISE - E&L,IT Consumables,Amazon *Mktplce EU-UK,28/08/2014,12.99
EMPLOYMENT & ENTERPRISE - E&L,IT Consumables,Amazon *Mktplce EU-UK,18/09/2014,18.11
EMPLOYMENT & ENTERPRISE - E&L,Mail Services-Postage,POST OFFICE COUNTER,15/10/2014,6.40
EMPLOYMENT & ENTERPRISE - E&L,Mail Services-Postage,POSTOFFICE SELFSERVICE,20/11/2014,6.40
EMPLOYMENT & ENTERPRISE - E&L,Professional & Advisory Services,CITB,18/09/2014,30.00
EMPLOYMENT & ENTERPRISE - E&L,Public Transport,OYSTER AUTOTOPUP,28/08/2014,20.00
EMPLOYMENT & ENTERPRISE - E&L,Public Transport,OYSTER AUTOTOPUP,18/09/2014,20.00
EMPLOYMENT & ENTERPRISE - E&L,Stationery,TESCO STORES 5342,28/08/2014,100.00
EMPLOYMENT & ENTERPRISE - E&L,Taxi Fares,MINI CAB,15/10/2014,4.17
EMPLOYMENT & ENTERPRISE - E&L,Taxi Fares,MINI CAB,20/11/2014,31.75
EMPLOYMENT & ENTERPRISE - E&L,Taxi Fares,MINI CAB,20/11/2014,15.42
EMPLOYMENT & ENTERPRISE - E&L,Taxi Fares,MINI CAB,20/11/2014,10.83
EMPLOYMENT & ENTERPRISE - E&L,Taxi Fares,MINI CAB,20/11/2014,9.67
EMPLOYMENT & ENTERPRISE - E&L,Taxi Fares,MINI CAB,18/12/2014,10.83
EMPLOYMENT & ENTERPRISE - E&L,Taxi Fares,MINI CAB,18/12/2014,16.33
EMPLOYMENT & ENTERPRISE - E&L,Taxi Fares,MINI CAB,18/12/2014,21.66
EMPLOYMENT & ENTERPRISE - E&L,Taxi Fares,WWW.ADDISONLEE.COM,05/08/2014,15.42
EMPLOYMENT & ENTERPRISE - E&L,Taxi Fares,WWW.ADDISONLEE.COM,10/09/2014,22.67
EMPLOYMENT & ENTERPRISE - E&L,Taxi Fares,WWW.ADDISONLEE.COM,15/10/2014,10.83
EMPLOYMENT & ENTERPRISE - E&L,Travel/Subsistence,BRITISH A 1258518980426,18/12/2014,69.21
EMPLOYMENT & ENTERPRISE - E&L,Travel/Subsistence,BRITISH A 1258518983626,18/12/2014,147.54
EMPLOYMENT & ENTERPRISE - E&L,Travel/Subsistence,EUROSTAR INTERNET,07/08/2014,133.00
EMPLOYMENT & ENTERPRISE - E&L,Travel/Subsistence,EUROSTAR INTERNET,07/08/2014,158.00
EMPLOYMENT & ENTERPRISE - E&L,Travel/Subsistence,EUROSTAR INTERNET,18/12/2014,71.50
EMPLOYMENT & ENTERPRISE - E&L,Travel/Subsistence,EUROSTAR INTERNET,18/12/2014,133.00
EMPLOYMENT & ENTERPRISE - E&L,Travel/Subsistence,LUL TICKET MACHINE,28/08/2014,54.20
EMPLOYMENT & ENTERPRISE - E&L,Travel/Subsistence,LUL TICKET MACHINE,28/08/2014,750.80
EMPLOYMENT & ENTERPRISE - E&L,Travel/Subsistence,LUL TICKET MACHINE,20/11/2014,77.60
EMPLOYMENT & ENTERPRISE - E&L,Travel/Subsistence,LUL TICKET MACHINE,18/12/2014,54.20
EMPLOYMENT & ENTERPRISE - E&L,Travel/Subsistence,LUL TICKET MACHINE,18/12/2014,25.20
EMPLOYMENT & ENTERPRISE - E&L,Travel/Subsistence,LUL TICKET MACHINE,18/12/2014,41.80
EMPLOYMENT & ENTERPRISE - E&L,Travel/Subsistence,LUL TICKET OFFICE.,28/08/2014,411.40
EMPLOYMENT & ENTERPRISE - E&L,Travel/Subsistence,OYSTER AUTOTOPUP,15/10/2014,20.00
EMPLOYMENT & ENTERPRISE - E&L,Travel/Subsistence,OYSTER AUTOTOPUP,20/11/2014,20.00
EMPLOYMENT & ENTERPRISE - E&L,Travel/Subsistence,OYSTER AUTOTOPUP,20/11/2014,20.00
EMPLOYMENT & ENTERPRISE - E&L,Travel/Subsistence,OYSTER AUTOTOPUP,18/12/2014,20.00
EMPLOYMENT & ENTERPRISE - E&L,Travel/Subsistence,OYSTER AUTOTOPUP,18/12/2014,20.00
EMPLOYMENT & ENTERPRISE - E&L,Travel/Subsistence,OYSTER BUS AUTOTOP,20/11/2014,20.00
EMPLOYMENT & ENTERPRISE - E&L,Travel/Subsistence,OYSTER BUS AUTOTOP,20/11/2014,20.00
EMPLOYMENT & ENTERPRISE - E&L,Travel/Subsistence,OYSTER BUS AUTOTOP,20/11/2014,20.00
EMPLOYMENT & ENTERPRISE - E&L,Travel/Subsistence,OYSTER BUS AUTOTOP,18/12/2014,20.00
EMPLOYMENT & ENTERPRISE - E&L,Travel/Subsistence,OYSTER BUS AUTOTOP,18/12/2014,20.00
EMPLOYMENT & ENTERPRISE - E&L,Travel/Subsistence,OYSTER BUS AUTOTOP,18/12/2014,20.00
EMPLOYMENT & ENTERPRISE - E&L,Travel/Subsistence,OYSTER RENEW WEB,20/11/2014,5.00
EMPLOYMENT & ENTERPRISE - E&L,Travel/Subsistence,OYSTER RENEW WEB,18/12/2014,23.60
EMPLOYMENT & ENTERPRISE - E&L,Travel/Subsistence,OYSTER RENEW WEB,18/12/2014,10.00
EMPLOYMENT & ENTERPRISE - E&L,Travel/Subsistence,OYSTER RENEW WEB,18/12/2014,36.80
EMPLOYMENT & ENTERPRISE - E&L,Travel/Subsistence,OYSTER RENEW WEB,18/12/2014,30.00
EMPLOYMENT & ENTERPRISE - E&L,Travel/Subsistence,Sainsburys S/mkts,20/11/2014,25.00
EMPLOYMENT & ENTERPRISE - E&L,Travel/Subsistence,THE TRAINLINE.CO,05/11/2014,45.10
EMPLOYMENT & ENTERPRISE - E&L,Travel/Subsistence,VIRGINTRAINS.CO.UK,20/11/2014,54.40
EMPLOYMENT & ENTERPRISE - E&L,Travel/Subsistence,VIRGINTRAINS.CO.UK,20/11/2014,58.40
EMPLOYMENT & ENTERPRISE - E&L,Travel/Subsistence,VIRGINTRAINS.CO.UK,20/11/2014,66.00
LIBRARIES & ARCHIVE,Mail Services-Postage,ROYAL MAIL,03/11/2014,190.00
LIBRARIES & ARCHIVE,Education-Other,B & Q,19/12/2014,46.09
LIBRARIES & ARCHIVE,Catering Food & Drink,LIDL UK,11/12/2014,14.24
LIBRARIES & ARCHIVE,Education-Library Books,Amazon EU,19/11/2014,5.23
LIBRARIES & ARCHIVE,Education-Library Books,Amazon EU,19/11/2014,31.67
LIBRARIES & ARCHIVE,Education-Library Books,Amazon EU,19/11/2014,12.42
LIBRARIES & ARCHIVE,Travel/Subsistence,LUL TICKET MACHINE,24/11/2014,15.00
LIBRARIES & ARCHIVE,Travel/Subsistence,OYSTER BUS AUTOTOP,04/10/2014,20.00
LIBRARIES & ARCHIVE,Travel/Subsistence,OYSTER BUS AUTOTOP,27/10/2014,20.00
LIBRARIES & ARCHIVE,Travel/Subsistence,OYSTER BUS AUTOTOP,02/11/2014,20.00
LIBRARIES & ARCHIVE,Travel/Subsistence,OYSTER BUS AUTOTOP,03/12/2014,20.00
LIBRARIES & ARCHIVE,Travel/Subsistence,OYSTER BUS AUTOTOP,06/12/2014,20.00
LIBRARIES & ARCHIVE,Travel/Subsistence,OYSTER BUS AUTOTOP,19/12/2014,20.00
LIBRARIES & ARCHIVE,Travel/Subsistence,OYSTER RENEW WEB,24/11/2014,10.00
LIBRARIES & ARCHIVE,Education-Other,RICHMOND ADULT,20/11/2014,170.00
LIBRARIES & ARCHIVE,Building-General,WWW.CHRONOS.LTD.UK,11/12/2014,26.00
LIBRARIES & ARCHIVE,Catering Food & Drink,SAINSBURY'S,16/12/2014,30.50
LIBRARIES & ARCHIVE,Catering Food & Drink,TESCO STORES 5459,24/11/2014,11.36
LIBRARIES & ARCHIVE,Furniture-Other,Amazon *Mktplce EU-UK,10/11/2014,-49.99
LIBRARIES & ARCHIVE,IT Hardware,ARGOS,27/10/2014,237.49
LIBRARIES & ARCHIVE,Travel/Subsistence,OYSTER AUTOTOPUP,04/09/2014,40.00
LIBRARIES & ARCHIVE,Travel/Subsistence,OYSTER BUS AUTOTOP,02/11/2014,40.00
LIBRARIES & ARCHIVE,Charges and Penalties,CASH ADVANCE FEE,26/12/2014,8.85
LIBRARIES & ARCHIVE,Education-Library Books,CITIZENS ADVICE,22/10/2014,65.00
LIBRARIES & ARCHIVE,Education-Library Books,LAG EDCTION SVC,30/10/2014,199.00
LIBRARIES & ARCHIVE,Education-Library Books,THE SPECTATOR /18,23/10/2014,111.00
LIBRARIES & ARCHIVE,Facilities-Market Research,NEW INTERNATIONALIST,22/10/2014,36.85
LIBRARIES & ARCHIVE,Financial Services,CASH ADVANCE FEE,16/09/2014,8.85
LIBRARIES & ARCHIVE,Financial Services,HALX - BRIXTON,23/12/2014,300.00
LIBRARIES & ARCHIVE,Financial Services,ROYAL BANK UK /,15/09/2014,300.00
LIBRARIES & ARCHIVE,Stationery,Amazon *Mktplce EU-UK,29/10/2014,56.17
LIBRARIES & ARCHIVE,Stationery,Amazon *Mktplce EU-UK,29/10/2014,42.50
LIBRARIES & ARCHIVE,Stationery,Amazon *Mktplce EU-UK,29/10/2014,33.90
LIBRARIES & ARCHIVE,Stationery,PRESERVATION EQUIP,29/10/2014,25.80
LIBRARIES & ARCHIVE,Use of Public Transport,COLUMBUS TRAINLINE,29/10/2014,2.00
LIBRARIES & ARCHIVE,Use of Public Transport,TRAINLINE.COM,29/10/2014,51.43
LIBRARIES & ARCHIVE,Catering Food & Drink,LIDL UK,27/11/2014,26.95
LIBRARIES & ARCHIVE,Domestic Goods-Other,DEBENHAMS.COM,13/08/2014,34.00
LIBRARIES & ARCHIVE,Education-Library Books,PAYPAL *BOOKSBEYOND,26/11/2014,288.50
LIBRARIES & ARCHIVE,Education-Library Books,WWW.PRISONS.ORG.UK,29/09/2014,113.98
LIBRARIES & ARCHIVE,Furniture-Other,MORLEYS,05/09/2014,27.07
LIBRARIES & ARCHIVE,IT Software-Customised,HANDS FREE COMPUTING,12/09/2014,25.63
LIBRARIES & ARCHIVE,Travel/Subsistence,OYSTER AUTOTOPUP,22/10/2014,40.00
LIBRARIES & ARCHIVE,Travel/Subsistence,OYSTER BUS AUTOTOP,13/08/2014,20.00
LIBRARIES & ARCHIVE,Travel/Subsistence,OYSTER BUS AUTOTOP,07/09/2014,20.00
LIBRARIES & ARCHIVE,Travel/Subsistence,OYSTER BUS AUTOTOP,11/10/2014,20.00
LIBRARIES & ARCHIVE,Utilities,Amazon *Mktplce EU-UK,26/09/2014,49.99
LIBRARIES & ARCHIVE,Facilities-Printing,LOOT LTD,14/08/2014,71.00
LIBRARIES & ARCHIVE,Catering Food & Drink,SAINSBURY'S S/MKT,01/09/2014,22.19
LIBRARIES & ARCHIVE,Domestic Goods-Other,Amazon EU,01/09/2014,6.49
LIBRARIES & ARCHIVE,Travel/Subsistence,LUL TICKET OFFICE.,09/12/2014,40.00
LIBRARIES & ARCHIVE,Utilities,THAMES WATER WEB PAYM,01/09/2014,125.33
LIBRARIES & ARCHIVE,Education-Library Books,WHICH?,13/08/2014,99.00
LIBRARIES & ARCHIVE,Education-Library Books,WWW.BRITARCH.AC.UK,13/08/2014,29.00
LIBRARIES & ARCHIVE,Education-Other,FILMBANK PVSL ACC,09/10/2014,452.00
LIBRARIES & ARCHIVE,Education-Library Books,Amazon *Mktplce EU-UK,26/08/2014,17.15
LIBRARIES & ARCHIVE,Education-Library Books,Amazon *Mktplce EU-UK,26/08/2014,22.23
LIBRARIES & ARCHIVE,Education-Library Books,Amazon *Mktplce EU-UK,26/08/2014,32.44
LIBRARIES & ARCHIVE,Education-Library Books,Amazon *Mktplce EU-UK,26/08/2014,23.97
LIBRARIES & ARCHIVE,Education-Library Books,Amazon *Mktplce EU-UK,09/10/2014,22.42
LIBRARIES & ARCHIVE,Education-Library Books,Amazon *Mktplce EU-UK,09/10/2014,7.64
LIBRARIES & ARCHIVE,Education-Library Books,Amazon *Mktplce EU-UK,09/10/2014,10.24
LIBRARIES & ARCHIVE,Education-Library Books,Amazon *Mktplce EU-UK,09/10/2014,48.96
LIBRARIES & ARCHIVE,Education-Library Books,Amazon *Mktplce EU-UK,09/10/2014,43.79
LIBRARIES & ARCHIVE,Education-Library Books,Amazon *Mktplce EU-UK,09/10/2014,8.95
LIBRARIES & ARCHIVE,Education-Library Books,Amazon *Mktplce EU-UK,09/10/2014,6.90
LIBRARIES & ARCHIVE,Education-Library Books,Amazon *Mktplce EU-UK,09/10/2014,52.49
LIBRARIES & ARCHIVE,Education-Library Books,Amazon *Mktplce EU-UK,09/10/2014,5.16
LIBRARIES & ARCHIVE,Education-Library Books,Amazon *Mktplce EU-UK,09/10/2014,24.04
LIBRARIES & ARCHIVE,Education-Library Books,Amazon *Mktplce EU-UK,09/10/2014,40.54
LIBRARIES & ARCHIVE,Education-Library Books,Amazon *Mktplce EU-UK,09/10/2014,8.60
LIBRARIES & ARCHIVE,Education-Library Books,Amazon *Mktplce EU-UK,09/10/2014,14.12
LIBRARIES & ARCHIVE,Education-Library Books,Amazon *Mktplce EU-UK,09/10/2014,32.53
LIBRARIES & ARCHIVE,Education-Library Books,Amazon *Mktplce EU-UK,09/10/2014,43.81
LIBRARIES & ARCHIVE,Education-Library Books,Amazon *Mktplce EU-UK,09/10/2014,37.58
LIBRARIES & ARCHIVE,Education-Library Books,Amazon *Mktplce EU-UK,09/10/2014,11.37
LIBRARIES & ARCHIVE,Education-Library Books,Amazon *Mktplce EU-UK,09/10/2014,17.38
LIBRARIES & ARCHIVE,Education-Library Books,Amazon *Mktplce EU-UK,09/10/2014,7.80
LIBRARIES & ARCHIVE,Education-Library Books,Amazon *Mktplce EU-UK,09/10/2014,2.93
LIBRARIES & ARCHIVE,Education-Library Books,Amazon *Mktplce EU-UK,09/10/2014,7.88
LIBRARIES & ARCHIVE,Education-Library Books,Amazon *Mktplce EU-UK,09/10/2014,11.77
LIBRARIES & ARCHIVE,Education-Library Books,Amazon *Mktplce EU-UK,09/09/2014,61.40
LIBRARIES & ARCHIVE,Education-Library Books,Amazon *Mktplce EU-UK,09/09/2014,9.99
LIBRARIES & ARCHIVE,Education-Library Books,Amazon *Mktplce EU-UK,11/12/2014,10.80
LIBRARIES & ARCHIVE,Education-Library Books,Amazon *Mktplce EU-UK,11/12/2014,3.44
LIBRARIES & ARCHIVE,Education-Library Books,Amazon *Mktplce EU-UK,11/12/2014,8.02
LIBRARIES & ARCHIVE,Education-Library Books,Amazon *Mktplce EU-UK,11/12/2014,12.29
LIBRARIES & ARCHIVE,Education-Library Books,Amazon *Mktplce EU-UK,11/12/2014,7.87
LIBRARIES & ARCHIVE,Education-Library Books,Amazon *Mktplce EU-UK,11/12/2014,11.74
LIBRARIES & ARCHIVE,Education-Library Books,Amazon *Mktplce EU-UK,11/12/2014,2.81
LIBRARIES & ARCHIVE,Education-Library Books,Amazon *Mktplce EU-UK,11/12/2014,10.39
LIBRARIES & ARCHIVE,Education-Library Books,Amazon *Mktplce EU-UK,11/12/2014,4.08
LIBRARIES & ARCHIVE,Education-Library Books,Amazon *Mktplce EU-UK,11/12/2014,16.42
LIBRARIES & ARCHIVE,Education-Library Books,Amazon *Mktplce EU-UK,11/12/2014,4.48
LIBRARIES & ARCHIVE,Education-Library Books,Amazon *Mktplce EU-UK,21/12/2014,26.35
LIBRARIES & ARCHIVE,Education-Library Books,Amazon *Mktplce EU-UK,21/12/2014,3.34
LIBRARIES & ARCHIVE,Education-Library Books,Amazon *Mktplce EU-UK,21/12/2014,33.84
LIBRARIES & ARCHIVE,Education-Library Books,Amazon *Mktplce EU-UK,21/12/2014,56.40
LIBRARIES & ARCHIVE,Education-Library Books,Amazon *Mktplce EU-UK,21/12/2014,2.65
LIBRARIES & ARCHIVE,Education-Library Books,Amazon *Mktplce EU-UK,30/12/2014,44.62
LIBRARIES & ARCHIVE,Education-Library Books,Amazon EU,09/10/2014,9.15
LIBRARIES & ARCHIVE,Education-Library Books,Amazon EU,09/10/2014,64.95
LIBRARIES & ARCHIVE,Education-Library Books,Amazon EU,09/10/2014,20.34
LIBRARIES & ARCHIVE,Education-Library Books,Amazon EU,09/10/2014,8.00
LIBRARIES & ARCHIVE,Education-Library Books,Amazon EU,09/10/2014,16.21
LIBRARIES & ARCHIVE,Education-Library Books,Amazon EU,09/10/2014,3.31
LIBRARIES & ARCHIVE,Education-Library Books,Amazon EU,09/10/2014,31.17
LIBRARIES & ARCHIVE,Education-Library Books,Amazon EU,09/10/2014,6.26
LIBRARIES & ARCHIVE,Education-Library Books,Amazon EU,09/10/2014,10.33
LIBRARIES & ARCHIVE,Education-Library Books,Amazon EU,09/10/2014,27.86
LIBRARIES & ARCHIVE,Education-Library Books,Amazon EU,11/12/2014,14.78
LIBRARIES & ARCHIVE,Education-Library Books,Amazon EU,11/12/2014,5.51
LIBRARIES & ARCHIVE,Education-Library Books,Amazon EU,11/12/2014,5.70
LIBRARIES & ARCHIVE,Education-Library Books,Amazon EU,11/12/2014,16.51
LIBRARIES & ARCHIVE,Education-Library Books,Amazon EU,21/12/2014,7.62
LIBRARIES & ARCHIVE,Education-Library Books,Amazon EU,21/12/2014,14.26
LIBRARIES & ARCHIVE,Education-Library Books,Amazon EU,21/12/2014,3.78
LIBRARIES & ARCHIVE,Education-Other,Amazon *Mktplce EU-UK,11/12/2014,11.70
LIBRARIES & ARCHIVE,Facilities-Printing,Amazon EU,26/08/2014,26.25
LIBRARIES & ARCHIVE,Facilities-Printing,Amazon EU,26/08/2014,37.65
LIBRARIES & ARCHIVE,Facilities-Storage,BIG YELLOW BOX & LOCK,05/08/2014,"1,163.70"
SCHOOL & EDUCATION IMPROVEMENT SERVICE,Financial Services,MK CIVIC OFFICES C,15/10/2014,100.00
SCHOOL & EDUCATION IMPROVEMENT SERVICE,Financial Services,CAPITA BUS SVS-MOTO,22/09/2014,399.00
SCHOOL & EDUCATION IMPROVEMENT SERVICE,Domestic Goods-Other,WWW.ROMPALIMITED.COM,08/09/2014,"1,664.45"
SCHOOL & EDUCATION IMPROVEMENT SERVICE,Education-Library Books,Amazon *Mktplce EU-UK,20/11/2014,16.96
SCHOOL & EDUCATION IMPROVEMENT SERVICE,Facilities-Printing,Amazon EU,20/11/2014,17.09
SCHOOL & EDUCATION IMPROVEMENT SERVICE,Facilities-Printing,Amazon EU,20/11/2014,251.60
ADVENTURE PLAYGROUNDS & ONE O'CLOCK CLUBS,Education-Other,MARKS & SPENCER,11/12/2014,50.00
ADVENTURE PLAYGROUNDS & ONE O'CLOCK CLUBS,Education-Other,CHALKBOARDS,28/11/2014,80.68
ADVENTURE PLAYGROUNDS & ONE O'CLOCK CLUBS,Healthcare Equipment,Amazon EU,18/12/2014,16.58
ADVENTURE PLAYGROUNDS & ONE O'CLOCK CLUBS,Arts & Leisure Services,ATG TICKETS,11/12/2014,133.30
ADVENTURE PLAYGROUNDS & ONE O'CLOCK CLUBS,Arts & Leisure Services,FUSION,20/08/2014,448.00
ADVENTURE PLAYGROUNDS & ONE O'CLOCK CLUBS,Building-Floors,BUDGET CARPETS 1,20/08/2014,205.00
CORPORATE ITEMS,Travel/Subsistence,LUL TICKET MACHINE,19/11/2014,40.00
CORPORATE ITEMS,Travel/Subsistence,LUL TICKET MACHINE,19/11/2014,40.00
PROPERTY & FINANCIAL TRANSACTION SERVICES,Healthcare Equipment,Amazon *Mktplce EU-UK,07/11/2014,48.98
PROPERTY & FINANCIAL TRANSACTION SERVICES,Healthcare Equipment,PATRA SELECT,18/12/2014,12.95
PROPERTY & FINANCIAL TRANSACTION SERVICES,IT Hardware,ONLINE ERGONOMICS,02/12/2014,149.30
PROPERTY & FINANCIAL TRANSACTION SERVICES,Healthcare Equipment,WWW.SAFELINCS.CO.UK,17/12/2014,974.17
PROPERTY & FINANCIAL TRANSACTION SERVICES,Facilities-Printing,PAYPAL *YOUR PRINT,01/12/2014,135.00
PROPERTY & FINANCIAL TRANSACTION SERVICES,Organised Activities,BS BALLOONS,04/12/2014,147.50
REVENUE & BENEFITS,Public Transport,WEST COAST TRAINS,16/10/2014,"9,744.00"
REVENUE & BENEFITS,Travel/Subsistence,THE CHILTERN RAILW,03/11/2014,43.00
REVENUE & BENEFITS,Travel/Subsistence,THE CHILTERN RAILW,25/11/2014,4.10
REVENUE & BENEFITS,Catering Food & Drink,TESCO STORES-2143,10/11/2014,9.38
REVENUE & BENEFITS,Catering Food & Drink,TESCO STORES-2143,29/09/2014,13.67
REVENUE & BENEFITS,Education-Other,CERTIFIED ACCOUNTA,13/10/2014,169.00
REVENUE & BENEFITS,Furniture-Other,Amazon *Mktplce EU-UK,14/08/2014,15.44
REVENUE & BENEFITS,Furniture-Other,Amazon *Mktplce EU-UK,14/08/2014,6.35
REVENUE & BENEFITS,IT Consumables,Amazon *Mktplce EU-UK,14/08/2014,22.53
REVENUE & BENEFITS,IT Consumables,Amazon EU,13/08/2014,9.99
REVENUE & BENEFITS,Mail Services-Postage,POST OFFICE COUNTER,24/09/2014,15.15
REVENUE & BENEFITS,Travel/Subsistence,LONDON & SOUTH EAS,09/09/2014,169.60
REVENUE & BENEFITS,Travel/Subsistence,LONDON & SOUTH EAS,18/11/2014,110.20
REVENUE & BENEFITS,Travel/Subsistence,LONDON & SOUTH EAS,01/10/2014,58.00
REVENUE & BENEFITS,Travel/Subsistence,LONDON & SOUTH EAS,16/12/2014,87.00
REVENUE & BENEFITS,Travel/Subsistence,LUL TICKET MACHINE,03/10/2014,10.00
REVENUE & BENEFITS,Travel/Subsistence,LUL TICKET MACHINE,31/10/2014,25.00
REVENUE & BENEFITS,Travel/Subsistence,OYSTER RENEW WEB,21/11/2014,10.00
REVENUE & BENEFITS,Travel/Subsistence,OYSTER RENEW WEB,06/12/2014,-10.00
REVENUE & BENEFITS,Legal Services-Other,HMCOURTS-SERVICE.G,17/09/2014,"8,013.00"
REVENUE & BENEFITS,Legal Services-Other,HMCOURTS-SERVICE.G,14/11/2014,"6,255.00"
REVENUE & BENEFITS,Legal Services-Other,HMCOURTS-SERVICE.G,02/10/2014,"5,718.00"
REVENUE & BENEFITS,Legal Services-Other,HMCOURTS-SERVICE.G,30/12/2014,"9,756.00"
REVENUE & BENEFITS,Travel/Subsistence,OYSTER AUTOTOPUP,17/09/2014,20.00
REVENUE & BENEFITS,Travel/Subsistence,OYSTER AUTOTOPUP,14/11/2014,20.00
REVENUE & BENEFITS,Travel/Subsistence,OYSTER AUTOTOPUP,14/11/2014,20.00
REVENUE & BENEFITS,Accommodation,NOTTINGHAM BELFRY,10/10/2014,185.00
REVENUE & BENEFITS,Travel/Subsistence,LONDON & SOUTH EAS,04/11/2014,99.00
REVENUE & BENEFITS,Travel/Subsistence,THE TRAINLINE.CO,12/08/2014,46.00
REVENUE & BENEFITS,Travel/Subsistence,VIRGINTRAINS.CO.UK,01/10/2014,103.00
BUSINESS TRANSFORMATION,Education-Toys,Amazon *Mktplce EU-UK,12/12/2014,0.00
BUSINESS TRANSFORMATION,IT Consumables,Amazon *Mktplce EU-UK,05/11/2014,84.83
BUSINESS TRANSFORMATION,IT Hardware,Amazon *Mktplce EU-UK,12/12/2014,416.60
BUSINESS TRANSFORMATION,IT Hardware,Amazon *Mktplce EU-UK,12/12/2014,340.13
BUSINESS TRANSFORMATION,IT Hardware,Amazon *Mktplce EU-UK,12/12/2014,-83.22
BUSINESS TRANSFORMATION,IT Hardware,Amazon EU,12/12/2014,83.32
BUSINESS TRANSFORMATION,IT Office Equipment,Amazon *Mktplce EU-UK,05/11/2014,732.29
BUSINESS TRANSFORMATION,IT Office Equipment,Amazon *Mktplce EU-UK,05/11/2014,83.22
BUSINESS TRANSFORMATION,IT Office Equipment,Amazon EU,05/11/2014,27.50
BUSINESS TRANSFORMATION,Professional subscriptions,WWW.PMGLTD.CO.UK,25/11/2014,"1,068.00"
BUSINESS TRANSFORMATION,Domestic Goods-Other,CURRYS SUPERSTORE,28/10/2014,47.98
BUSINESS TRANSFORMATION,Domestic Goods-Other,CURRYS SUPERSTORE,28/10/2014,64.98
BUSINESS TRANSFORMATION,Education-Library Books,Amazon *Mktplce EU-UK,28/10/2014,29.03
CORPORATE AFFAIRS,Accommodation,HOLIDAY INNS,19/12/2014,50.00
CORPORATE AFFAIRS,Accommodation,HOLIDAY INNS,19/12/2014,125.83
CORPORATE AFFAIRS,Catering Food & Drink,MARKS & SPENCER,25/09/2014,24.60
CORPORATE AFFAIRS,Catering Food & Drink,TESCO STORE 2143,19/12/2014,27.12
CORPORATE AFFAIRS,Telecommunications,BT CONFERENCING,25/09/2014,93.25
CORPORATE AFFAIRS,Travel/Subsistence,EC MAINLINE CO INT,19/12/2014,24.50
CORPORATE AFFAIRS,Travel/Subsistence,TFL CC/LEZ CHARGE,19/12/2014,11.50
CORPORATE AFFAIRS,Accommodation,HILTON,26/11/2014,78.33
CORPORATE AFFAIRS,Accommodation,RADISSON BLU HOTEL,06/11/2014,148.34
CORPORATE AFFAIRS,Catering Food & Drink,SACAT MARKS & SPENCER,24/09/2014,10.34
CORPORATE AFFAIRS,Catering Food & Drink,SACAT MARKS & SPENCER,26/11/2014,10.50
CORPORATE AFFAIRS,Catering Food & Drink,SACAT MARKS & SPENCER,26/11/2014,4.30
CORPORATE AFFAIRS,Catering Food & Drink,SAINSBURY'S SMKT,26/11/2014,1.30
CORPORATE AFFAIRS,Catering Food & Drink,TESCO STORE 2143,26/11/2014,55.37
CORPORATE AFFAIRS,Legal Services-General Support,WWW.ARK-GROUP.COM,24/09/2014,95.00
CORPORATE AFFAIRS,Legal Services-Other,LAW SOCIETY FINANC,06/11/2014,413.51
CORPORATE AFFAIRS,Legal Services-Other,MBL SEMINARS,06/11/2014,480.00
CORPORATE AFFAIRS,Stationery,ARGOS,06/11/2014,11.39
CORPORATE AFFAIRS,Travel/Subsistence,BRIX CENTRAL STOP,15/08/2014,50.00
CORPORATE AFFAIRS,Travel/Subsistence,BRIX CENTRAL STOP,24/09/2014,50.00
CORPORATE AFFAIRS,Travel/Subsistence,BRIX CENTRAL STOP,24/09/2014,50.00
CORPORATE AFFAIRS,Travel/Subsistence,BRIX CENTRAL STOP,24/09/2014,50.00
CORPORATE AFFAIRS,Travel/Subsistence,BRIX CENTRAL STOP,24/09/2014,100.00
CORPORATE AFFAIRS,Travel/Subsistence,BRIX CENTRAL STOP,06/11/2014,50.00
CORPORATE AFFAIRS,Travel/Subsistence,BRIX CENTRAL STOP,06/11/2014,50.00
CORPORATE AFFAIRS,Travel/Subsistence,BRIX CENTRAL STOP,26/11/2014,50.00
CORPORATE AFFAIRS,Travel/Subsistence,BRIX CENTRAL STOP,08/12/2014,50.00
CORPORATE AFFAIRS,Travel/Subsistence,BRIX CENTRAL STOP,08/12/2014,100.00
CORPORATE AFFAIRS,Travel/Subsistence,BRIX CENTRAL STOP,23/12/2014,50.00
CORPORATE AFFAIRS,Travel/Subsistence,GREATER ANGLIA - STANS,06/11/2014,33.20
CORPORATE AFFAIRS,Travel/Subsistence,VIRGINTRAINS.CO.UK,09/10/2014,58.20
CORPORATE AFFAIRS,Travel/Subsistence,VIRGINTRAINS.CO.UK,26/11/2014,132.00
CORPORATE AFFAIRS,Accommodation,HILTON,19/12/2014,11.25
CORPORATE AFFAIRS,Accommodation,RADISSON BLU HOTEL,19/12/2014,205.01
CORPORATE AFFAIRS,Catering Food & Drink,TESCO STORE 2143,25/09/2014,4.49
CORPORATE AFFAIRS,Catering Food & Drink,WEST COAST TRAINS LTD,15/10/2014,8.00
CORPORATE AFFAIRS,Healthcare Services,SOLACE LTD,19/12/2014,150.00
CORPORATE AFFAIRS,IT Services,NOMAD WEST COAST L,15/10/2014,5.00
CORPORATE AFFAIRS,Professional & Advisory Services,WWW.PMGLTD.CO.UK,19/12/2014,395.00
CORPORATE AFFAIRS,Professional & Advisory Services,WWW.SOLACEENTERPRISES.,19/12/2014,375.00
CORPORATE AFFAIRS,Travel/Subsistence,BRIX CENTRAL STOP,19/12/2014,50.00
CORPORATE AFFAIRS,Travel/Subsistence,EC MAINLINE CO INT,19/12/2014,63.50
CORPORATE AFFAIRS,Travel/Subsistence,EC MAINLINE CO INT,19/12/2014,37.00
CORPORATE AFFAIRS,Consultancy-Business,PIPERS PROJECTS LTD,15/10/2014,100.00
CORPORATE AFFAIRS,Catering Food & Drink,TESCO STORE 2143,19/12/2014,19.37
CORPORATE AFFAIRS,Catering Food & Drink,PIZZA HUT,15/08/2014,44.27
CORPORATE AFFAIRS,Organised Activities,HIGH STREET VOUCHE,15/08/2014,203.50
FINANCIAL PLANNING AND MANAGEMENT,Travel/Subsistence,OYSTER AUTOTOPUP,13/11/2014,20.00
FINANCIAL PLANNING AND MANAGEMENT,Travel/Subsistence,OYSTER AUTOTOPUP,13/11/2014,20.00
FINANCIAL PLANNING AND MANAGEMENT,Travel/Subsistence,OYSTER AUTOTOPUP,13/11/2014,20.00
FINANCIAL PLANNING AND MANAGEMENT,Travel/Subsistence,OYSTER AUTOTOPUP,13/11/2014,20.00
FINANCIAL PLANNING AND MANAGEMENT,Travel/Subsistence,OYSTER AUTOTOPUP,13/11/2014,20.00
FINANCIAL PLANNING AND MANAGEMENT,Travel/Subsistence,OYSTER ISSUE WEB,13/11/2014,35.00
FINANCIAL PLANNING AND MANAGEMENT,Facilities-Storage,ARMOUR LOCK AND SAFE,11/08/2014,10.00
FINANCIAL PLANNING AND MANAGEMENT,Domestic Goods-Other,ARGOS RETAIL GROUP,10/10/2014,78.91
FINANCIAL PLANNING AND MANAGEMENT,Domestic Goods-Other,ARGOS RETAIL GROUP,10/10/2014,235.79
FINANCIAL PLANNING AND MANAGEMENT,Domestic Goods-Other,ARGOS RETAIL GROUP,27/11/2014,887.93
FINANCIAL PLANNING AND MANAGEMENT,Domestic Goods-Other,ARGOS RETAIL GROUP,27/11/2014,252.95
FINANCIAL PLANNING AND MANAGEMENT,Domestic Goods-Other,ARGOS RETAIL GROUP,27/11/2014,438.90
FINANCIAL PLANNING AND MANAGEMENT,Domestic Goods-Other,ARGOS RETAIL GROUP,25/12/2014,282.95
FINANCIAL PLANNING AND MANAGEMENT,Domestic Goods-Other,ARGOS RETAIL GROUP,14/08/2014,233.93
FINANCIAL PLANNING AND MANAGEMENT,Domestic Goods-Other,ARGOS RETAIL GROUP,06/09/2014,448.41
FINANCIAL PLANNING AND MANAGEMENT,Domestic Goods-Other,ARGOS RETAIL GROUP,06/09/2014,"1,277.79"
FINANCIAL PLANNING AND MANAGEMENT,Domestic Goods-Other,CURRYS ONLINE,10/10/2014,571.48
FINANCIAL PLANNING AND MANAGEMENT,Domestic Goods-Other,TESCO DIRECT,10/10/2014,299.00
FINANCIAL PLANNING AND MANAGEMENT,Domestic Goods-Other,WWW.JOHNLEWIS.COM,27/11/2014,299.00
FINANCIAL PLANNING AND MANAGEMENT,Domestic Goods-Other,WWW.JOHNLEWIS.COM,14/11/2014,20.00
FINANCIAL PLANNING AND MANAGEMENT,Domestic Goods-Other,WWW.JOHNLEWIS.COM,14/11/2014,95.00
FINANCIAL PLANNING AND MANAGEMENT,Financial Services,LBL NOT PRESENT,25/12/2014,10.17
FINANCIAL PLANNING AND MANAGEMENT,Financial Services-Grants,ROYAL NATIONAL INSTITUTE,06/09/2014,143.98
FINANCIAL PLANNING AND MANAGEMENT,Travel/Subsistence,OYSTER AUTOTOPUP,10/10/2014,20.00
FINANCIAL PLANNING AND MANAGEMENT,Travel/Subsistence,OYSTER AUTOTOPUP,27/11/2014,20.00
FINANCIAL PLANNING AND MANAGEMENT,Travel/Subsistence,OYSTER AUTOTOPUP,25/12/2014,20.00
FINANCIAL PLANNING AND MANAGEMENT,Travel/Subsistence,OYSTER AUTOTOPUP,25/12/2014,20.00
FINANCIAL PLANNING AND MANAGEMENT,Travel/Subsistence,OYSTER AUTOTOPUP,14/08/2014,20.00
FINANCIAL PLANNING AND MANAGEMENT,Travel/Subsistence,OYSTER BUS AUTOTOP,10/10/2014,20.00
FINANCIAL PLANNING AND MANAGEMENT,Travel/Subsistence,OYSTER BUS AUTOTOP,14/08/2014,20.00
FINANCIAL PLANNING AND MANAGEMENT,Travel/Subsistence,OYSTER BUS AUTOTOP,06/09/2014,20.00
FINANCIAL PLANNING AND MANAGEMENT,Travel/Subsistence,OYSTER BUS AUTOTOP,04/12/2014,20.00
FINANCIAL PLANNING AND MANAGEMENT,Catering Food & Drink,SAINSBURYS S/MKTS,01/10/2014,5.90
FINANCIAL PLANNING AND MANAGEMENT,Stationery,Amazon *Mktplce EU-UK,22/10/2014,79.00
FINANCIAL PLANNING AND MANAGEMENT,Travel/Subsistence,EC MAINLINE CO INT,17/11/2014,137.90
FINANCIAL PLANNING AND MANAGEMENT,Travel/Subsistence,LUL TICKET OFFICE.,18/09/2014,25.00
FINANCIAL PLANNING AND MANAGEMENT,Travel/Subsistence,LUL TICKET OFFICE.,18/09/2014,25.00
FINANCIAL PLANNING AND MANAGEMENT,Travel/Subsistence,OYSTER RENEW WEB,18/09/2014,10.00
FINANCIAL PLANNING AND MANAGEMENT,Education-Other,ACCA,19/09/2014,79.00
FINANCIAL PLANNING AND MANAGEMENT,Education-Other,ACCA,06/10/2014,387.00
FINANCIAL PLANNING AND MANAGEMENT,Financial Services,LAND REGISTRY,14/08/2014,9.00
FINANCIAL PLANNING AND MANAGEMENT,Financial Services,LAND REGISTRY,28/08/2014,3.00
FINANCIAL PLANNING AND MANAGEMENT,Financial Services,LAND REGISTRY,28/08/2014,3.00
FINANCIAL PLANNING AND MANAGEMENT,Financial Services,LAND REGISTRY,26/09/2014,3.00
FINANCIAL PLANNING AND MANAGEMENT,Financial Services,LAND REGISTRY,26/09/2014,3.00
FINANCIAL PLANNING AND MANAGEMENT,Financial Services,LAND REGISTRY,26/09/2014,3.00
FINANCIAL PLANNING AND MANAGEMENT,Financial Services,LAND REGISTRY,26/09/2014,6.00
FINANCIAL PLANNING AND MANAGEMENT,Financial Services,LAND REGISTRY,26/09/2014,3.00
FINANCIAL PLANNING AND MANAGEMENT,Financial Services,LAND REGISTRY,26/09/2014,3.00
FINANCIAL PLANNING AND MANAGEMENT,Financial Services,LAND REGISTRY,10/10/2014,3.00
FINANCIAL PLANNING AND MANAGEMENT,Financial Services,LAND REGISTRY,27/11/2014,9.00
FINANCIAL PLANNING AND MANAGEMENT,Financial Services,LAND REGISTRY,27/11/2014,3.00
FINANCIAL PLANNING AND MANAGEMENT,Financial Services,LAND REGISTRY,27/11/2014,3.00
FINANCIAL PLANNING AND MANAGEMENT,Financial Services,LAND REGISTRY,30/12/2014,3.00
FINANCIAL PLANNING AND MANAGEMENT,Financial Services,LAND REGISTRY,30/12/2014,3.00
FINANCIAL PLANNING AND MANAGEMENT,Legal Services-General Support,LAND REGISTRY,30/10/2014,3.00
FINANCIAL PLANNING AND MANAGEMENT,Legal Services-General Support,LAND REGISTRY,30/10/2014,3.00
FINANCIAL PLANNING AND MANAGEMENT,Travel/Subsistence,OYSTER BUS AUTOTOP,10/10/2014,40.00
FINANCIAL PLANNING AND MANAGEMENT,Travel/Subsistence,OYSTER AUTOTOPUP,18/10/2014,20.00
FINANCIAL PLANNING AND MANAGEMENT,Travel/Subsistence,OYSTER BUS AUTOTOP,18/10/2014,20.00
FINANCIAL PLANNING AND MANAGEMENT,Food/refreshment - meetings,SUBWAY,18/08/2014,19.95
FINANCIAL PLANNING AND MANAGEMENT,Professional subscriptions,ACCA,10/10/2014,79.00
FINANCIAL PLANNING AND MANAGEMENT,Use of Public Transport,BRIXTON HILL EXPRESS,11/11/2014,20.00
FINANCIAL PLANNING AND MANAGEMENT,Food/refreshment - meetings,SAINSBURYS,18/08/2014,5.73
FINANCIAL PLANNING AND MANAGEMENT,Stationery,CARPHONE WAREHOUSE,20/08/2014,17.99
FINANCIAL PLANNING AND MANAGEMENT,Travel/Subsistence,EXPRESS NEWS,07/08/2014,30.50
FINANCIAL PLANNING AND MANAGEMENT,Use of Public Transport,ARRIVA TRAINS WALE,10/09/2014,62.60
FINANCIAL PLANNING AND MANAGEMENT,Use of Public Transport,BRIXTON HILL EXPRESS,17/11/2014,30.00
FINANCIAL PLANNING AND MANAGEMENT,Use of Public Transport,BRIXTON HILL EXPRESS,01/12/2014,10.00
FINANCIAL PLANNING AND MANAGEMENT,Use of Public Transport,BRIXTON NEWS,18/11/2014,25.60
FINANCIAL PLANNING AND MANAGEMENT,Use of Public Transport,EXPRESS NEWS,20/08/2014,20.00
FINANCIAL PLANNING AND MANAGEMENT,Use of Public Transport,EXPRESS NEWS,07/10/2014,30.00
FINANCIAL PLANNING AND MANAGEMENT,Use of Public Transport,EXPRESS NEWS,01/09/2014,30.00
FINANCIAL PLANNING AND MANAGEMENT,Use of Public Transport,EXPRESS NEWS,21/10/2014,30.00
FINANCIAL PLANNING AND MANAGEMENT,Use of Public Transport,IRCAS,29/11/2014,40.25
FINANCIAL PLANNING AND MANAGEMENT,Use of Public Transport,LUFTHANSA 2202350252067,31/10/2014,254.91
FINANCIAL PLANNING AND MANAGEMENT,Use of Public Transport,LUFTHANSA 2202350252068,31/10/2014,254.91
FINANCIAL PLANNING AND MANAGEMENT,Use of Public Transport,NEW SOUTHERN RAILW,25/09/2014,30.00
FINANCIAL PLANNING AND MANAGEMENT,Use of Public Transport,TRAINLINE.COM,27/08/2014,79.66
FINANCIAL PLANNING AND MANAGEMENT,Professional & Advisory Services,CAPITA BUSINESS SERVS,28/11/2014,875.00
FINANCIAL PLANNING AND MANAGEMENT,Travel/Subsistence,VIRGINTRAINS.CO.UK,05/10/2014,79.70
FINANCIAL PLANNING AND MANAGEMENT,Catering Food & Drink,M&S E COMMERCE,10/10/2014,113.00
FINANCIAL PLANNING AND MANAGEMENT,Catering Food & Drink,SACAT MARKS & SPENCER,16/10/2014,19.25
FINANCIAL PLANNING AND MANAGEMENT,Catering Food & Drink,SAINSBURY'S S/MKT,26/09/2014,154.45
FINANCIAL PLANNING AND MANAGEMENT,Catering Food & Drink,SAINSBURY'S S/MKT,26/09/2014,89.95
FINANCIAL PLANNING AND MANAGEMENT,Catering Food & Drink,SAINSBURYS S/MKTS,26/09/2014,39.56
FINANCIAL PLANNING AND MANAGEMENT,Catering Food & Drink,TESCO STORE 2143,08/10/2014,26.10
FINANCIAL PLANNING AND MANAGEMENT,Catering Food & Drink,TESCO STORE 2143,26/09/2014,5.00
FINANCIAL PLANNING AND MANAGEMENT,Education-Other,WWW.QA.COM,12/08/2014,"1,267.20"
FINANCIAL PLANNING AND MANAGEMENT,Use of Public Transport,BRIXTON NEWS,31/10/2014,30.60
INTERNAL AUDIT,Catering Food & Drink,SAINSBURYS S/MKTS,25/11/2014,5.24
INTERNAL AUDIT,Catering Food & Drink,TESCO STORES-2143,17/09/2014,8.68
INTERNAL AUDIT,Catering Food & Drink,TESCO STORES-2143,11/12/2014,5.66
INTERNAL AUDIT,Clothing-Other,Amazon *Mktplce EU-UK,29/10/2014,14.58
INTERNAL AUDIT,Consultancy-Business,EB *TENANCY FRAUD FORU,26/11/2014,198.00
INTERNAL AUDIT,Domestic Goods-Other,Amazon *Mktplce EU-UK,07/08/2014,5.98
INTERNAL AUDIT,Facilities-Design & Photography,Amazon *Mktplce EU-UK,17/09/2014,14.96
INTERNAL AUDIT,Facilities-Design & Photography,Amazon *Mktplce EU-UK,11/09/2014,124.97
INTERNAL AUDIT,Facilities-Design & Photography,Amazon EU,18/09/2014,19.72
INTERNAL AUDIT,Financial Services,GRO HM PASSPORT OFFICE,13/11/2014,9.25
INTERNAL AUDIT,Financial Services,GRO HM PASSPORT OFFICE,18/12/2014,9.25
INTERNAL AUDIT,Financial Services,LBL NOT PRESENT,23/10/2014,10.17
INTERNAL AUDIT,Financial Services,LBL NOT PRESENT,04/12/2014,10.17
INTERNAL AUDIT,IT Consumables,Amazon *Mktplce EU-UK,13/11/2014,27.88
INTERNAL AUDIT,IT Consumables,Amazon EU,02/12/2014,31.24
INTERNAL AUDIT,Stationery,Amazon *Mktplce EU-UK,23/10/2014,53.08
INTERNAL AUDIT,Stationery,Amazon *Mktplce EU-UK,26/11/2014,5.06
INTERNAL AUDIT,Stationery,Amazon *Mktplce EU-UK,26/11/2014,27.97
INTERNAL AUDIT,Stationery,CANFORD AUDIO PLC,28/08/2014,55.50
INTERNAL AUDIT,Stationery,GRO HM PASSPORT OFFICE,09/10/2014,27.75
INTERNAL AUDIT,Telecommunications,Amazon *Mktplce EU-UK,08/09/2014,5.32
INTERNAL AUDIT,Travel/Subsistence,OYSTER AUTOTOPUP,23/10/2014,20.00
INTERNAL AUDIT,Travel/Subsistence,OYSTER AUTOTOPUP,23/10/2014,40.00
INTERNAL AUDIT,Travel/Subsistence,OYSTER AUTOTOPUP,29/10/2014,40.00
INTERNAL AUDIT,Travel/Subsistence,OYSTER AUTOTOPUP,13/11/2014,40.00
INTERNAL AUDIT,Travel/Subsistence,OYSTER AUTOTOPUP,13/11/2014,20.00
INTERNAL AUDIT,Travel/Subsistence,OYSTER AUTOTOPUP,26/11/2014,20.00
INTERNAL AUDIT,Travel/Subsistence,OYSTER AUTOTOPUP,04/12/2014,20.00
INTERNAL AUDIT,Travel/Subsistence,OYSTER AUTOTOPUP,04/12/2014,20.00
INTERNAL AUDIT,Travel/Subsistence,OYSTER AUTOTOPUP,04/12/2014,40.00
INTERNAL AUDIT,Travel/Subsistence,OYSTER AUTOTOPUP,21/12/2014,40.00
INTERNAL AUDIT,Travel/Subsistence,OYSTER AUTOTOPUP,21/12/2014,20.00
INTERNAL AUDIT,Travel/Subsistence,OYSTER BUS AUTOTOP,09/10/2014,20.00
INTERNAL AUDIT,Travel/Subsistence,OYSTER BUS AUTOTOP,15/10/2014,40.00
INTERNAL AUDIT,Travel/Subsistence,OYSTER BUS AUTOTOP,23/10/2014,40.00
INTERNAL AUDIT,Travel/Subsistence,OYSTER BUS AUTOTOP,29/10/2014,40.00
INTERNAL AUDIT,Travel/Subsistence,OYSTER BUS AUTOTOP,26/11/2014,20.00
INTERNAL AUDIT,Travel/Subsistence,OYSTER BUS AUTOTOP,26/11/2014,40.00
INTERNAL AUDIT,Travel/Subsistence,OYSTER BUS AUTOTOP,04/12/2014,20.00
INTERNAL AUDIT,Travel/Subsistence,OYSTER BUS AUTOTOP,21/12/2014,40.00
INTERNAL AUDIT,Travel/Subsistence,OYSTER ISSUE WEB,15/10/2014,50.00
INTERNAL AUDIT,Travel/Subsistence,OYSTER ISSUE WEB,26/11/2014,50.00
INTERNAL AUDIT,Travel/Subsistence,TFL CC/LEZ CHARGE,15/10/2014,11.50
INTERNAL AUDIT,Travel/Subsistence,TFL CC/LEZ CHARGE,13/11/2014,11.50
INTERNAL AUDIT,Travel/Subsistence,TFL CC/LEZ CHARGE,26/11/2014,11.50
INTERNAL AUDIT,Travel/Subsistence,TRAINLINE.COM,15/10/2014,78.03
INTERNAL AUDIT,Travel/Subsistence,TRAINLINE.COM,09/12/2014,14.43
INTERNAL AUDIT,Travel/Subsistence,TRAINLINE.COM,18/12/2014,46.41
INTERNAL AUDIT,Legal Services-Other,COUNTY COURT,10/10/2014,56.00
INTERNAL AUDIT,Stationery,GRO HM PASSPORT OFFICE,27/10/2014,18.50
INTERNAL AUDIT,Travel/Subsistence,TFL CC/LEZ CHARGE,06/08/2014,11.50
INTERNAL AUDIT,Travel/Subsistence,TFL CC/LEZ CHARGE,04/09/2014,11.50
INTERNAL AUDIT,Travel/Subsistence,TFL CC/LEZ CHARGE,04/09/2014,11.50
INTERNAL AUDIT,Travel/Subsistence,TFL CC/LEZ CHARGE,09/10/2014,34.50
INTERNAL AUDIT,Travel/Subsistence,TFL CC/LEZ CHARGE,09/10/2014,11.50
INTERNAL AUDIT,Travel/Subsistence,TFL CC/LEZ CHARGE,10/10/2014,11.50
INTERNAL AUDIT,Travel/Subsistence,TFL CC/LEZ CHARGE,27/10/2014,11.50
INTERNAL AUDIT,Travel/Subsistence,TFL CC/LEZ CHARGE,13/11/2014,11.50
INTERNAL AUDIT,Travel/Subsistence,TFL CC/LEZ CHARGE,13/11/2014,11.50
INTERNAL AUDIT,Travel/Subsistence,TFL CC/LEZ CHARGE,17/11/2014,11.50
PROCUREMENT,Vehicle Maintenance,WWW.DVLA.GOV.UK,06/11/2014,227.50
PROCUREMENT,Utilities,SOUTHERN ELECTRIC,16/09/2014,349.12
PROCUREMENT,Utilities,UK POWER NETWORKS,23/12/2014,"2,744.50"
HUMAN RESOURCES & ORGANISATIONAL DEVELOPMENT,Professional & Advisory Services,WP-INTERVIEWGOLD,03/11/2014,156.00
HUMAN RESOURCES & ORGANISATIONAL DEVELOPMENT,Education-Library Books,Amazon *Mktplce EU-UK,28/10/2014,56.49
HUMAN RESOURCES & ORGANISATIONAL DEVELOPMENT,Professional & Advisory Services,PAYPAL *CONFERENCES,28/10/2014,50.00
HUMAN RESOURCES & ORGANISATIONAL DEVELOPMENT,Professional & Advisory Services,PP*VIVA ACCESS,06/08/2014,210.00
POLICY & COMMUNICATIONS,Education-Library Books,Amazon *Mktplce EU-UK,23/09/2014,0.00
POLICY & COMMUNICATIONS,Education-Library Books,PAYPAL *LE NEWSPAPR,22/10/2014,36.00
POLICY & COMMUNICATIONS,Education-Library Books,PAYPAL *LE NEWSPAPR,22/10/2014,37.00
POLICY & COMMUNICATIONS,Education-Other,Amazon *Mktplce EU-UK,24/09/2014,146.55
POLICY & COMMUNICATIONS,Education-Other,Amazon *Mktplce EU-UK,24/09/2014,24.97
POLICY & COMMUNICATIONS,Facilities-Printing,Amazon EU,23/09/2014,0.00
POLICY & COMMUNICATIONS,Facilities-Printing,Amazon EU,23/09/2014,0.00
POLICY & COMMUNICATIONS,Travel/Subsistence,TRAINLINE.COM,30/10/2014,138.72
POLICY & COMMUNICATIONS,Travel/Subsistence,TRAINLINE.COM,08/10/2014,128.32
POLICY & COMMUNICATIONS,Travel/Subsistence,TRAINLINE.COM,08/10/2014,110.67
POLICY & COMMUNICATIONS,Travel/Subsistence,TRAINLINE.COM,08/10/2014,118.83
POLICY & COMMUNICATIONS,Travel/Subsistence,TRAINLINE.COM,08/10/2014,144.33
POLICY & COMMUNICATIONS,Accommodation,DIANA HOTEL,08/10/2014,116.67
POLICY & COMMUNICATIONS,Catering Food & Drink,IZ *Tanisha hot sp,08/10/2014,500.00
POLICY & COMMUNICATIONS,Organised Activities,IZ *Andy Kelliott,08/10/2014,"1,500.00"
POLICY & COMMUNICATIONS,Facilities-Advertising,FACEBK *27N6262BA2,08/10/2014,24.00
POLICY & COMMUNICATIONS,Facilities-Advertising,FACEBK *5JZL36JAA2,08/10/2014,24.00
POLICY & COMMUNICATIONS,Facilities-Advertising,FACEBK *9HK856JAA2,08/10/2014,24.00
POLICY & COMMUNICATIONS,Facilities-Advertising,FACEBK *J49P36NAA2,08/10/2014,24.00
POLICY & COMMUNICATIONS,Facilities-Advertising,FACEBK *JVZL362AA2,08/10/2014,24.00
POLICY & COMMUNICATIONS,Facilities-Advertising,FACEBK *K8NTZ52AA2,08/10/2014,24.00
POLICY & COMMUNICATIONS,Facilities-Advertising,FACEBK *KZX576W9A2,08/10/2014,24.00
POLICY & COMMUNICATIONS,Facilities-Advertising,FACEBK *PDM446NAA2,08/10/2014,24.00
POLICY & COMMUNICATIONS,Facilities-Advertising,FACEBK *UEY646JAA2,08/10/2014,24.00
POLICY & COMMUNICATIONS,Facilities-Advertising,FACEBK *UGUN26AAA2,08/10/2014,24.00
POLICY & COMMUNICATIONS,Facilities-Advertising,FACEBK *URTZ56AAA2,08/10/2014,12.00
POLICY & COMMUNICATIONS,Facilities-Advertising,FACEBK *XPGX46NAA2,08/10/2014,24.00
POLICY & COMMUNICATIONS,Facilities-Advertising,FACEBK *YMLM262BA2,08/10/2014,24.00
POLICY & COMMUNICATIONS,Facilities-Advertising,LONDON&ESSEX NEWSPAPERS,08/10/2014,364.00
POLICY & COMMUNICATIONS,Facilities-Advertising,SOUTHWARK NEWSPAPE,08/10/2014,330.00
POLICY & COMMUNICATIONS,Facilities-Market Research,CTC*CONSTANTCONTACT.COM,08/10/2014,73.67
POLICY & COMMUNICATIONS,Facilities-Market Research,CTC*CONSTANTCONTACT.COM,08/10/2014,80.67
POLICY & COMMUNICATIONS,Facilities-Retail,Groupon,08/10/2014,-29.98
POLICY & COMMUNICATIONS,Financial Services,WANDSWORTH COUNCIL INT,08/10/2014,372.40
POLICY & COMMUNICATIONS,Healthcare Services,AUDIENCE.UK.COM,08/10/2014,75.00
POLICY & COMMUNICATIONS,Horticultural-Other,PAYPAL *PVCTUBEONLI,08/10/2014,10.65
POLICY & COMMUNICATIONS,IT Services,123-REG.CO.UK,08/10/2014,19.98
POLICY & COMMUNICATIONS,Taxi Fares,WWW.ADDISONLEE.COM,08/10/2014,13.00
POLICY & COMMUNICATIONS,Taxi Fares,WWW.ADDISONLEE.COM,08/10/2014,25.08
POLICY & COMMUNICATIONS,Travel/Subsistence,OYSTER AUTOTOPUP,08/10/2014,40.00
POLICY & COMMUNICATIONS,Travel/Subsistence,OYSTER AUTOTOPUP,08/10/2014,40.00
POLICY & COMMUNICATIONS,Travel/Subsistence,OYSTER AUTOTOPUP,08/10/2014,40.00
POLICY & COMMUNICATIONS,Travel/Subsistence,OYSTER AUTOTOPUP,08/10/2014,40.00
POLICY & COMMUNICATIONS,Travel/Subsistence,OYSTER AUTOTOPUP,08/10/2014,40.00
POLICY & COMMUNICATIONS,Travel/Subsistence,OYSTER AUTOTOPUP,08/10/2014,40.00
POLICY & COMMUNICATIONS,Travel/Subsistence,OYSTER BUS AUTOTOP,08/10/2014,40.00
POLICY & COMMUNICATIONS,Travel/Subsistence,OYSTER BUS AUTOTOP,08/10/2014,40.00
POLICY & COMMUNICATIONS,Travel/Subsistence,OYSTER BUS AUTOTOP,08/10/2014,40.00
POLICY & COMMUNICATIONS,Travel/Subsistence,OYSTER BUS AUTOTOP,08/10/2014,40.00
POLICY & COMMUNICATIONS,Accommodation,TRAVELODGE WEBSITE,25/09/2014,526.00
POLICY & COMMUNICATIONS,Travel/Subsistence,EC MAINLINE CO INT,25/09/2014,111.60
POLICY & COMMUNICATIONS,Travel/Subsistence,VIRGINTRAINS.CO.UK,19/12/2014,53.00
POLICY & COMMUNICATIONS,Catering Food & Drink,SAINSBURY'S S/MKT,01/09/2014,223.88
POLICY & COMMUNICATIONS,Catering Food & Drink,TESCO STORE 2143,19/11/2014,101.67
POLICY & COMMUNICATIONS,Catering Food & Drink,TESCO STORE 2143,03/12/2014,46.37
POLICY & COMMUNICATIONS,Catering Food & Drink,TESCO STORE 2143,28/10/2014,15.40
POLICY & COMMUNICATIONS,Catering Food & Drink,TESCO STORES-2143,11/09/2014,7.21
POLICY & COMMUNICATIONS,Catering Food & Drink,TESCO STORES-2143,11/11/2014,10.00
POLICY & COMMUNICATIONS,Catering Food & Drink,TESCO STORES-2143,03/12/2014,8.65
POLICY & COMMUNICATIONS,Catering Food & Drink,TESCO STORES-2143,03/12/2014,11.54
POLICY & COMMUNICATIONS,Domestic Goods-Other,POUNDLAND LTD 1203,03/09/2014,5.00
POLICY & COMMUNICATIONS,Domestic Goods-Other,POUNDLAND LTD 1203,07/12/2014,2.00
POLICY & COMMUNICATIONS,Horticultural-Seeds & Plants,JANET EDWARDS LONDON B,29/09/2014,35.00
POLICY & COMMUNICATIONS,Catering Food & Drink,WAITROSE 212,23/10/2014,126.50
POLICY & COMMUNICATIONS,Education-Library Books,Amazon *Mktplce EU-UK,23/10/2014,3.50
POLICY & COMMUNICATIONS,Education-Supplies,Amazon *Mktplce EU-UK,23/10/2014,24.98
POLICY & COMMUNICATIONS,Facilities-Reprographics,WWW.INSTANTPRINT.C,26/11/2014,53.16
POLICY & COMMUNICATIONS,Facilities-Storage,Amazon *Mktplce EU-UK,23/10/2014,30.08
POLICY & COMMUNICATIONS,Financial Services-Insurance,GILES INSUR BROKERS LT,26/11/2014,53.00
POLICY & COMMUNICATIONS,Stationery,Amazon *Mktplce EU-UK,26/11/2014,3.48
POLICY & COMMUNICATIONS,Stationery,Amazon *Mktplce EU-UK,26/11/2014,12.01
POLICY & COMMUNICATIONS,Stationery,Amazon EU,23/10/2014,7.58
POLICY & COMMUNICATIONS,Stationery,SPEEDY STAMPS LTD,26/11/2014,45.63
POLICY & COMMUNICATIONS,Travel/Subsistence,TRAINLINE.COM,18/08/2014,124.75
FINANCE (HRA),Accommodation,HOLIDAY INN EXPRES,07/11/2014,759.00
FINANCE (HRA),Charges and Penalties,SGN CONNECTIONS,09/12/2014,-631.20
FINANCE (HRA),Domestic Goods-Other,SGN CONNECTIONS,25/11/2014,862.00
FINANCE (HRA),Facilities-Printing,Amazon EU,11/11/2014,132.88
FINANCE (HRA),Facilities-Printing,THE PRINTING PEOPLE LT,11/09/2014,497.99
FINANCE (HRA),Financial Services,CHERWELL DISTRICT COUN,08/08/2014,"2,565.57"
FINANCE (HRA),Financial Services,WWW.DVLA.GOV.UK,30/10/2014,227.50
FINANCE (HRA),Professional & Advisory Services,UK TRAINING WORLDWIDE LTD,05/11/2014,538.00
HUMAN RESOURCES & ORGANISATIONAL DEVELOPMENT (HRA),Catering Food & Drink,SAN MARINO,19/12/2014,39.00
HUMAN RESOURCES & ORGANISATIONAL DEVELOPMENT (HRA),Catering Food & Drink,TESCO STORE 2143,19/12/2014,22.95
HUMAN RESOURCES & ORGANISATIONAL DEVELOPMENT (HRA),Catering Food & Drink,TESCO STORES 5999,06/10/2014,51.30
HUMAN RESOURCES & ORGANISATIONAL DEVELOPMENT (HRA),Catering Food & Drink,TESCO STORES 5999,06/10/2014,-3.96
HUMAN RESOURCES & ORGANISATIONAL DEVELOPMENT (HRA),Catering Food & Drink,TESCO STORES 5999,19/12/2014,80.80
HUMAN RESOURCES & ORGANISATIONAL DEVELOPMENT (HRA),Catering Food & Drink,TESCO STORES 5999,19/12/2014,71.55
HUMAN RESOURCES & ORGANISATIONAL DEVELOPMENT (HRA),Catering Food & Drink,VIKING,17/12/2014,227.88
HUMAN RESOURCES & ORGANISATIONAL DEVELOPMENT (HRA),Domestic Goods-Other,JOY BRIXTON,06/10/2014,6.00
HUMAN RESOURCES & ORGANISATIONAL DEVELOPMENT (HRA),Facilities-Advertising,EXPRESS NEWS,06/10/2014,30.50
HUMAN RESOURCES & ORGANISATIONAL DEVELOPMENT (HRA),Facilities-Advertising,EXPRESS NEWS,06/10/2014,60.00
HUMAN RESOURCES & ORGANISATIONAL DEVELOPMENT (HRA),Facilities-Advertising,EXPRESS NEWS,09/12/2014,90.00
HUMAN RESOURCES & ORGANISATIONAL DEVELOPMENT (HRA),IT Services-Disaster Recovery,BT DISCLOSURE SCOTLAND,06/10/2014,25.00
HUMAN RESOURCES & ORGANISATIONAL DEVELOPMENT (HRA),IT Services-Disaster Recovery,BT DISCLOSURE SCOTLAND,06/10/2014,25.00
HUMAN RESOURCES & ORGANISATIONAL DEVELOPMENT (HRA),IT Services-Disaster Recovery,BT DISCLOSURE SCOTLAND,06/10/2014,25.00
HUMAN RESOURCES & ORGANISATIONAL DEVELOPMENT (HRA),IT Services-Disaster Recovery,BT DISCLOSURE SCOTLAND,06/10/2014,25.00
HUMAN RESOURCES & ORGANISATIONAL DEVELOPMENT (HRA),IT Services-Disaster Recovery,BT DISCLOSURE SCOTLAND,09/12/2014,25.00
HUMAN RESOURCES & ORGANISATIONAL DEVELOPMENT (HRA),IT Services-Disaster Recovery,BT DISCLOSURE SCOTLAND,09/12/2014,25.00
HUMAN RESOURCES & ORGANISATIONAL DEVELOPMENT (HRA),IT Services-Disaster Recovery,BT DISCLOSURE SCOTLAND,09/12/2014,25.00
HUMAN RESOURCES & ORGANISATIONAL DEVELOPMENT (HRA),IT Services-Disaster Recovery,BT DISCLOSURE SCOTLAND,09/12/2014,100.00
HUMAN RESOURCES & ORGANISATIONAL DEVELOPMENT (HRA),Legal Services-Other,CCBCOFFICE,09/12/2014,155.00
HUMAN RESOURCES & ORGANISATIONAL DEVELOPMENT (HRA),Staff Recruitment costs,BT DISCLOSURE SCOTLAND,19/12/2014,25.00
HUMAN RESOURCES & ORGANISATIONAL DEVELOPMENT (HRA),Staff Recruitment costs,BT DISCLOSURE SCOTLAND,19/12/2014,50.00
HUMAN RESOURCES & ORGANISATIONAL DEVELOPMENT (HRA),Staff Recruitment costs,BT DISCLOSURE SCOTLAND,19/12/2014,25.00
HUMAN RESOURCES & ORGANISATIONAL DEVELOPMENT (HRA),Staff Recruitment costs,BT DISCLOSURE SCOTLAND,19/12/2014,25.00
HUMAN RESOURCES & ORGANISATIONAL DEVELOPMENT (HRA),Stationery,VIKING,06/10/2014,59.94
HUMAN RESOURCES & ORGANISATIONAL DEVELOPMENT (HRA),Stationery,VIKING,09/12/2014,50.78
HUMAN RESOURCES & ORGANISATIONAL DEVELOPMENT (HRA),Stationery,VIKING,09/12/2014,64.40
HOUSING NEEDS,Letting Agents,ALLPAY.NET VISA AND MAST,22/08/2014,"2,500.00"
HOUSING NEEDS,Letting Agents,LEBERN LTD,22/08/2014,833.33
HOUSING NEEDS,Professional subscriptions,WWW.ASSETSKILLSTRAINING.,21/11/2014,252.00
HOUSING NEEDS,Stationery,PAYPAL *CPAG,22/08/2014,38.99
HOUSING NEEDS,Stationery,WP-LEGAL ACTION GR,22/08/2014,33.50
HOUSING NEEDS,Domestic Goods-Other,ARGOS RETAIL GROUP,26/09/2014,354.93
HOUSING NEEDS,Travel/Subsistence,LUL TICKET MACHINE,13/08/2014,40.00
HOUSING NEEDS,Accommodation,PREMIER INN 44033690,22/08/2014,592.50
HOUSING NEEDS,IT Office Equipment,Amazon EU,22/08/2014,127.98
ENVIRONMENT,Building-Timber,B & Q,17/09/2014,29.76
ENVIRONMENT,Building-Timber,B & Q,08/10/2014,32.00
ENVIRONMENT,Building-Timber,B & Q,08/10/2014,29.96
ENVIRONMENT,Catering Food & Drink,SAINSBURY'S S/MKT,07/08/2014,27.97
ENVIRONMENT,Catering Food & Drink,SAINSBURY'S S/MKT,17/09/2014,44.25
ENVIRONMENT,Catering Food & Drink,SAINSBURY'S S/MKT,08/10/2014,35.80
ENVIRONMENT,Catering Food & Drink,SAINSBURY'S S/MKT,08/10/2014,43.95
ENVIRONMENT,Catering Food & Drink,SAINSBURY'S S/MKT,31/12/2014,14.50
ENVIRONMENT,Education-Library Books,Amazon *Mktplce EU-UK,08/10/2014,50.85
ENVIRONMENT,Financial Services,LAND REGISTRY,17/09/2014,6.00
ENVIRONMENT,Financial Services,LAND REGISTRY,08/10/2014,6.00
ENVIRONMENT,Financial Services,LAND REGISTRY,08/10/2014,6.00
ENVIRONMENT,Travel/Subsistence,LONDON & SOUTH EAS,07/08/2014,5.00
ENVIRONMENT,Travel/Subsistence,LONDON & SOUTH EAS,03/09/2014,30.00
ENVIRONMENT,Travel/Subsistence,TRAINLINE.COM,24/12/2014,63.60
ENVIRONMENT,Works-Construction,BROXAP LTD,23/12/2014,36.00
NEE SENIOR MANAGEMENT TEAM,Travel/Subsistence,TRAINLINE.COM,14/11/2014,69.72
NEIGHBOURHOODS,IT Services,TESCO STORES 6427,30/10/2014,40.00
NEIGHBOURHOODS,Accommodation,JURYS INN,16/12/2014,495.00
NEIGHBOURHOODS,Accommodation,JURYS INN,16/12/2014,-99.00
NEIGHBOURHOODS,Catering Food & Drink,ASDA SUPERSTORE,16/12/2014,58.41
NEIGHBOURHOODS,Catering Food & Drink,MARKS & SPENCER,16/12/2014,44.00
NEIGHBOURHOODS,Catering Food & Drink,MARKS & SPENCER,16/12/2014,70.75
NEIGHBOURHOODS,Catering Food & Drink,SACAT MARKS & SPENCER,26/08/2014,33.01
NEIGHBOURHOODS,Domestic Goods-Other,ARGOS,26/08/2014,24.99
NEIGHBOURHOODS,Domestic Goods-Other,ARGOS,26/08/2014,9.99
NEIGHBOURHOODS,Domestic Goods-Other,POUNDLAND LTD 1203,26/08/2014,14.00
NEIGHBOURHOODS,Education-Library Books,Amazon *Mktplce EU-UK,26/08/2014,19.69
NEIGHBOURHOODS,Education-Library Books,Amazon *Mktplce EU-UK,16/12/2014,10.13
NEIGHBOURHOODS,Education-Library Books,Amazon *Mktplce EU-UK,16/12/2014,27.98
NEIGHBOURHOODS,Facilities-Advertising,WH SMITH,26/08/2014,20.00
NEIGHBOURHOODS,Facilities-Advertising,WH SMITH,16/12/2014,30.00
NEIGHBOURHOODS,Facilities-Printing,Amazon EU,26/08/2014,50.00
NEIGHBOURHOODS,Facilities-Printing,Amazon EU,16/12/2014,44.00
NEIGHBOURHOODS,Facilities-Printing,Amazon EU,16/12/2014,82.99
NEIGHBOURHOODS,Facilities-Printing,Amazon EU,16/12/2014,50.00
NEIGHBOURHOODS,Financial Services,LAMBETH INTERNET PAYM,16/12/2014,10.17
NEIGHBOURHOODS,Financial Services-Grants,TOWN & COUNTRY,16/12/2014,162.00
NEIGHBOURHOODS,Healthcare Services,SOLACE LTD,16/12/2014,"1,008.00"
NEIGHBOURHOODS,Healthcare-Drugs,SUPERDRUG STORES PLC,16/12/2014,4.00
NEIGHBOURHOODS,Healthcare-Drugs,SUPERDRUG STORES PLC,16/12/2014,9.80
NEIGHBOURHOODS,IT Services,DNH*GODADDY.COM EUROPE,16/12/2014,171.44
NEIGHBOURHOODS,IT Services,DNH*GODADDY.COM EUROPE,16/12/2014,32.84
NEIGHBOURHOODS,Telecommunications,EE LIMITED 4482,26/08/2014,30.00
NEIGHBOURHOODS,Travel/Subsistence,TICKETOFFICESALE,16/12/2014,175.50
NEIGHBOURHOODS,Travel/Subsistence,VIRGINTRAINS.CO.UK,16/12/2014,46.00
NEIGHBOURHOODS,Travel/Subsistence,VIRGINTRAINS.CO.UK,16/12/2014,104.00
NEIGHBOURHOODS,Domestic Goods-Commercial,TV LICENSING,07/11/2014,145.50
NEIGHBOURHOODS,Mail Services-Postage,ROYAL MAIL CUSTOMER,17/11/2014,313.01
NEIGHBOURHOODS,Building-General,WIDE LOYAL INTERNA,10/12/2014,702.00
NEIGHBOURHOODS,Building-General,WIDE LOYAL INTERNA,27/11/2014,674.32
NEIGHBOURHOODS,Building-Others,ARCO LTD,11/09/2014,360.64
NEIGHBOURHOODS,Building-Others,ARCO LTD,01/10/2014,175.34
NEIGHBOURHOODS,Building-Others,FORTRESS LOCK AND SAFE CO,08/10/2014,371.03
NEIGHBOURHOODS,Building-Others,FORTRESS LOCK AND SAFE CO,10/12/2014,173.13
NEIGHBOURHOODS,Building-Timber,TP BALHAM HILL,17/12/2014,34.41
NEIGHBOURHOODS,Building-Timber,TP TRADING CO LTD,17/12/2014,12.90
NEIGHBOURHOODS,Horticultural-Other,C BEST LTD,28/11/2014,792.00
NEIGHBOURHOODS,Horticultural-Other,CASH ADVANCE FEE,26/11/2014,7.38
NEIGHBOURHOODS,Horticultural-Other,KEY INDUSTRIAL EQUIPMENT,10/11/2014,190.00
NEIGHBOURHOODS,Horticultural-Seeds & Plants,COSTCO,25/11/2014,208.00
NEIGHBOURHOODS,Healthcare Services,SOLACE LTD,21/11/2014,150.00
NEIGHBOURHOODS,Mail Services-Postage,ROYAL MAIL GROUP,28/11/2014,260.84
NEIGHBOURHOODS,Travel/Subsistence,THE TRAINLINE.CO,04/08/2014,92.00
NEIGHBOURHOODS,Travel/Subsistence,THE TRAINLINE.CO,18/11/2014,84.20
NEIGHBOURHOODS,Domestic Goods-Other,POUNDLAND LTD 1203,03/12/2014,7.50
NEIGHBOURHOODS,Furniture-Office Furniture,Amazon EU,17/09/2014,83.61
"WELFARE, EMPLOYMENT & SKILLS",Public Transport,OYSTER BUS AUTOTOP,28/08/2014,20.00
"WELFARE, EMPLOYMENT & SKILLS",Public Transport,OYSTER BUS AUTOTOP,18/09/2014,20.00
"WELFARE, EMPLOYMENT & SKILLS",Taxi Fares,MINI CAB,10/09/2014,26.66
"WELFARE, EMPLOYMENT & SKILLS",Taxi Fares,MINI CAB,10/09/2014,9.73
"WELFARE, EMPLOYMENT & SKILLS",Taxi Fares,WWW.ADDISONLEE.COM,06/08/2014,15.42
"WELFARE, EMPLOYMENT & SKILLS",Taxi Fares,WWW.ADDISONLEE.COM,08/08/2014,4.17
"WELFARE, EMPLOYMENT & SKILLS",Taxi Fares,WWW.ADDISONLEE.COM,10/09/2014,13.33
"WELFARE, EMPLOYMENT & SKILLS",Taxi Fares,WWW.ADDISONLEE.COM,10/09/2014,10.83
"WELFARE, EMPLOYMENT & SKILLS",Education-Other,PAYPAL *TINDERFOUND,10/11/2014,126.00
"WELFARE, EMPLOYMENT & SKILLS",Education-Other,WWW.SITRA.ORG,11/11/2014,99.00
"WELFARE, EMPLOYMENT & SKILLS",Education-Other,WWW.THEKNOWLEDGEACADEM,11/11/2014,178.80
"PLANNING, TRANSPORT & DEVELOPMENT",Banquet & Catering,ABBEVILLES RESTAURANT,06/10/2014,310.80
"PLANNING, TRANSPORT & DEVELOPMENT",Clothing-Footwear,WICKES,12/11/2014,224.91
"PLANNING, TRANSPORT & DEVELOPMENT",Education-Library Books,BOOKPOINT LIMITED,29/09/2014,45.00
"PLANNING, TRANSPORT & DEVELOPMENT",Education-Other,WP-HAYMARKET PUBLI,19/12/2014,477.60
"PLANNING, TRANSPORT & DEVELOPMENT",IT Office Equipment,MAPLIN THE STRAND WC2R,10/11/2014,36.98
"PLANNING, TRANSPORT & DEVELOPMENT",Professional subscriptions,WESTMINSTER FORUM,22/12/2014,0.00
"PLANNING, TRANSPORT & DEVELOPMENT",Travel/Subsistence,NEW SOUTHERN RAILW,01/10/2014,30.80
"PLANNING, TRANSPORT & DEVELOPMENT",Accommodation,CitizenMBanksideCOM,17/10/2014,256.64
"PLANNING, TRANSPORT & DEVELOPMENT",Building-Timber,ACRE LANE TIMBER LTD,17/10/2014,46.15
"PLANNING, TRANSPORT & DEVELOPMENT",Clothing-Children/Adults,KIT-SHOP LTD,17/10/2014,105.00
"PLANNING, TRANSPORT & DEVELOPMENT",Cycles Purchase,BRIXTON CYCLES LTD,17/10/2014,131.00
"PLANNING, TRANSPORT & DEVELOPMENT",Facilities-Design & Photography,4 PRINT & DESIGN,11/09/2014,181.55
"PLANNING, TRANSPORT & DEVELOPMENT",Facilities-Design & Photography,4 PRINT & DESIGN,11/09/2014,49.02
"PLANNING, TRANSPORT & DEVELOPMENT",Facilities-Design & Photography,4 PRINT & DESIGN,11/09/2014,14.95
"PLANNING, TRANSPORT & DEVELOPMENT",Facilities-Design & Photography,4 PRINT & DESIGN,11/09/2014,287.15
"PLANNING, TRANSPORT & DEVELOPMENT",Building-Timber,HOMEBASE LTD 667,24/10/2014,49.28
"PLANNING, TRANSPORT & DEVELOPMENT",Building-Timber,LEYLAND SDM (SHO),24/10/2014,17.97
"PLANNING, TRANSPORT & DEVELOPMENT",Cycles Purchase,HALFORDS 0716,24/10/2014,21.67
"PLANNING, TRANSPORT & DEVELOPMENT",Cycles Purchase,HARBOUR CYCLES,24/10/2014,100.00
"PLANNING, TRANSPORT & DEVELOPMENT",Domestic Goods-Other,ARGOS,24/10/2014,200.00
"PLANNING, TRANSPORT & DEVELOPMENT",Domestic Goods-Other,WWW.JOHNLEWIS.COM,24/10/2014,158.98
"PLANNING, TRANSPORT & DEVELOPMENT",Facilities-Advertising,WH SMITH,24/10/2014,30.00
"PLANNING, TRANSPORT & DEVELOPMENT",Facilities-Advertising,WP-HAYMARKET PUBLI,24/10/2014,270.00
"PLANNING, TRANSPORT & DEVELOPMENT",Facilities-Printing,CLEAR PRINTING LIMITED,24/10/2014,20.00
COMMUNITY SAFETY,Consultancy-Other,NATWEST BRIXTON CASH,04/09/2014,326.00
COMMUNITY SAFETY,Domestic Goods-Other,IMPACT,11/09/2014,162.00
COMMUNITY SAFETY,Education-Other,MIDDLESEX UNIVERSITY,01/09/2014,120.00
COMMUNITY SAFETY,Financial Services,CASH ADVANCE FEE,03/09/2014,14.72
COMMUNITY SAFETY,Financial Services,CASH ADVANCE FEE,04/09/2014,9.62
COMMUNITY SAFETY,Financial Services,NATWEST BRIXTON CASH,03/09/2014,499.00
HOUSING MANAGEMENT - REPAIRS & MAINTENANCE,Catering Food & Drink,99P STORES LTD,30/09/2014,7.92
HOUSING MANAGEMENT - REPAIRS & MAINTENANCE,Catering Food & Drink,JONES THE BUTCHERS,12/08/2014,145.00
HOUSING MANAGEMENT - REPAIRS & MAINTENANCE,Catering Food & Drink,MARKS & SPENCER,09/10/2014,176.00
HOUSING MANAGEMENT - REPAIRS & MAINTENANCE,Catering Food & Drink,MS CUPCAKE LTD,09/10/2014,13.50
HOUSING MANAGEMENT - REPAIRS & MAINTENANCE,Catering Food & Drink,PAPA JOHNS,30/09/2014,196.87
HOUSING MANAGEMENT - REPAIRS & MAINTENANCE,Catering Food & Drink,SACAT MARKS & SPENCER,09/10/2014,44.50
HOUSING MANAGEMENT - REPAIRS & MAINTENANCE,Catering Food & Drink,TESCO STORE 2143,13/08/2014,63.09
HOUSING MANAGEMENT - REPAIRS & MAINTENANCE,Catering Food & Drink,TESCO STORE 2143,15/08/2014,54.65
HOUSING MANAGEMENT - REPAIRS & MAINTENANCE,Catering Food & Drink,TESCO STORE 2143,29/08/2014,58.90
HOUSING MANAGEMENT - REPAIRS & MAINTENANCE,Catering Food & Drink,TESCO STORES 5999,15/08/2014,231.26
HOUSING MANAGEMENT - REPAIRS & MAINTENANCE,Catering Food & Drink,TESCO STORES 6231,09/10/2014,61.18
HOUSING MANAGEMENT - REPAIRS & MAINTENANCE,Catering Food & Drink,WWW.KEEPITSWEET.CO.UK,19/09/2014,184.49
HOUSING MANAGEMENT - REPAIRS & MAINTENANCE,Domestic Goods-Other,ARGOS LTD,30/09/2014,85.48
HOUSING MANAGEMENT - REPAIRS & MAINTENANCE,Domestic Goods-Other,MORLEYS,09/10/2014,42.15
HOUSING MANAGEMENT - REPAIRS & MAINTENANCE,Domestic Goods-Other,MORLEYS,30/09/2014,6.00
HOUSING MANAGEMENT - REPAIRS & MAINTENANCE,Domestic Goods-Other,PAYPAL *CAKE TAILOR,09/10/2014,299.00
HOUSING MANAGEMENT - REPAIRS & MAINTENANCE,Domestic Goods-Other,PAYPAL *CAKE TAILOR,09/10/2014,299.00
HOUSING MANAGEMENT - REPAIRS & MAINTENANCE,Domestic Goods-Other,TK MAXX,09/10/2014,139.80
HOUSING MANAGEMENT - REPAIRS & MAINTENANCE,Domestic Goods-Other,TK MAXX,09/10/2014,27.96
HOUSING MANAGEMENT - REPAIRS & MAINTENANCE,Domestic Goods-Other,TK MAXX,09/10/2014,32.75
HOUSING MANAGEMENT - REPAIRS & MAINTENANCE,Domestic Goods-Other,WWW.PARTYRAMA.CO.UK,11/08/2014,185.87
HOUSING MANAGEMENT - REPAIRS & MAINTENANCE,Healthcare-Drugs,KINGSHIELD PHARMACY,30/09/2014,15.73
HOUSING MANAGEMENT SERVICES,Facilities-Market Research,Amazon Prime,04/09/2014,-79.00
HOUSING MANAGEMENT SERVICES,Horticultural-Seeds & Plants,ARENA FLOWERS,05/09/2014,34.98
HOUSING MANAGEMENT SERVICES,Catering Food & Drink,TESCO STORES 5999,15/11/2014,32.49
HOUSING MANAGEMENT SERVICES,Domestic Goods-Other,ARGOS RETAIL GROUP,15/11/2014,49.74
HOUSING MANAGEMENT SERVICES,Facilities-Advertising,WH SMITH,15/11/2014,65.71
HOUSING MANAGEMENT SERVICES,Facilities-Design & Photography,HOSPEDIAHOSPITALTV,15/11/2014,30.00
HOUSING MANAGEMENT SERVICES,Facilities-Design & Photography,HOSPEDIAHOSPITALTV,15/11/2014,-20.00
HOUSING MANAGEMENT SERVICES,Facilities-Printing,Amazon EU,15/11/2014,54.97
HOUSING MANAGEMENT SERVICES,Financial Services-Grants,HTTP://LOCALITY.ORG.UK,15/11/2014,200.00
HOUSING MANAGEMENT SERVICES,Financial Services-Grants,PAYPAL *SUSTAIN,15/11/2014,29.17
HOUSING MANAGEMENT SERVICES,Accommodation,NOVOTEL LONDON WATERLOO,01/11/2014,158.33
HOUSING MANAGEMENT SERVICES,Building-Timber,SCREWFIX,30/12/2014,-27.33
HOUSING MANAGEMENT SERVICES,Building-Timber,SCREWFIX,23/12/2014,28.33
HOUSING MANAGEMENT SERVICES,Building-Timber,TP VAUXHALL,30/12/2014,41.10
HOUSING MANAGEMENT SERVICES,Catering Food & Drink,TESCO STORE 2764,30/12/2014,174.75
HOUSING MANAGEMENT SERVICES,Catering Food & Drink,TESCO STORE 2764,30/12/2014,45.53
HOUSING MANAGEMENT SERVICES,Catering Food & Drink,TESCO STORE 2764,23/12/2014,113.22
HOUSING MANAGEMENT SERVICES,Catering Food & Drink,TESCO STORES 6231,23/12/2014,10.25
HOUSING MANAGEMENT SERVICES,Facilities-Printing,Amazon EU,30/12/2014,14.16
HOUSING MANAGEMENT SERVICES,Travel/Subsistence,LUL TICKET OFFICE.,30/12/2014,100.00
HOUSING MANAGEMENT SERVICES,Catering Food & Drink,MARKS & SPENCER,19/12/2014,26.50
HOUSING MANAGEMENT SERVICES,Catering Food & Drink,SAINSBURY'S S/MKT,19/12/2014,44.45
HOUSING MANAGEMENT SERVICES,Consultancy-Business,WWW.PMGLTD.CO.UK,19/12/2014,355.00
HOUSING MANAGEMENT SERVICES,Financial Services,MENDIP DISTRICT COUNCI,19/12/2014,"1,000.00"
HOUSING MANAGEMENT SERVICES,Financial Services,MENDIP DISTRICT COUNCI,19/12/2014,768.45
HOUSING MANAGEMENT SERVICES,Healthcare-Counselling,PASTDUE CREDIT PDQ,19/12/2014,95.96
HOUSING MANAGEMENT SERVICES,Healthcare-Counselling,WWW.THEZINCGROUP.COM,19/12/2014,503.79
HOUSING MANAGEMENT SERVICES,Catering Food & Drink,BELLS NEWS,09/10/2014,110.50
HOUSING MANAGEMENT SERVICES,Catering Food & Drink,BELLS NEWS,09/10/2014,60.50
HOUSING MANAGEMENT SERVICES,Catering Food & Drink,BELLS NEWS,09/10/2014,50.50
HOUSING MANAGEMENT SERVICES,Catering Food & Drink,BELLS NEWS,26/11/2014,55.50
HOUSING MANAGEMENT SERVICES,Catering Food & Drink,BELLS NEWS,26/11/2014,50.50
HOUSING MANAGEMENT SERVICES,Catering Food & Drink,BELLS NEWS,26/11/2014,50.50
HOUSING MANAGEMENT SERVICES,Catering Food & Drink,SAINSBURY'S S/MKT,09/10/2014,19.07
HOUSING MANAGEMENT SERVICES,Catering Food & Drink,SAINSBURY'S S/MKT,09/10/2014,120.00
HOUSING MANAGEMENT SERVICES,Catering Food & Drink,SAINSBURY'S S/MKT,09/10/2014,11.79
HOUSING MANAGEMENT SERVICES,Catering Food & Drink,SAINSBURY'S S/MKT,09/10/2014,100.00
HOUSING MANAGEMENT SERVICES,Catering Food & Drink,SAINSBURY'S S/MKT,26/11/2014,50.00
HOUSING MANAGEMENT SERVICES,Catering Food & Drink,SAINSBURY'S S/MKT,26/11/2014,20.40
HOUSING MANAGEMENT SERVICES,Catering Food & Drink,SAINSBURY'S S/MKT,26/11/2014,50.00
HOUSING MANAGEMENT SERVICES,Catering Food & Drink,SAINSBURY'S S/MKT,26/11/2014,22.78
HOUSING MANAGEMENT SERVICES,Catering Food & Drink,TESCO STORES 6239,26/11/2014,11.85
HOUSING MANAGEMENT SERVICES,Domestic Goods-Other,SGN CONNECTIONS,09/10/2014,927.60
HOUSING MANAGEMENT SERVICES,Domestic Goods-Other,SGN CONNECTIONS,26/11/2014,-927.60
HOUSING MANAGEMENT SERVICES,Financial Services,WANDSWORTH COUNCIL INT,09/10/2014,7.00
HOUSING NEEDS (HRA),Building-Timber,SCREWFIX DIRECT,20/10/2014,484.35
HOUSING NEEDS (HRA),Building-Timber,SCREWFIX DIRECT,23/09/2014,182.80
HOUSING NEEDS (HRA),Building-Timber,SCREWFIX DIRECT,18/12/2014,351.29
HOUSING NEEDS (HRA),Healthcare Equipment,WWW.EUREKADIRECT.CO.UK,24/11/2014,85.90
HOMES & COMMUNITIES (HRA),Legal Services-General Support,DEVONSHIRES SOLICITORS,22/08/2014,"8,000.00"
HOUSING CAPITAL & ASSET MANAGEMENT,Legal Services-Other,HMCOURTS-SERVICE.G,28/08/2014,260.00
HOUSING CAPITAL & ASSET MANAGEMENT,Legal Services-Other,HMCOURTS-SERVICE.G,10/12/2014,220.00
HOUSING CAPITAL & ASSET MANAGEMENT,Legal Services-Other,HMCOURTS-SERVICE.G,01/10/2014,100.00
HOUSING CAPITAL & ASSET MANAGEMENT,Legal Services-Other,HMCOURTS-SERVICE.G,01/10/2014,80.00
HOUSING CAPITAL & ASSET MANAGEMENT,Legal Services-Other,HMCOURTS-SERVICE.G,19/11/2014,60.00
HOUSING CAPITAL & ASSET MANAGEMENT,Legal Services-Other,HMCOURTS-SERVICE.G,07/08/2014,20.00
HOUSING CAPITAL & ASSET MANAGEMENT,Legal Services-Other,HMCOURTS-SERVICE.G,18/09/2014,80.00
HOUSING CAPITAL & ASSET MANAGEMENT,Legal Services-Other,HMCOURTS-SERVICE.G,26/09/2014,60.00
HOUSING CAPITAL & ASSET MANAGEMENT,Legal Services-Other,HMCOURTS-SERVICE.G,15/10/2014,80.00
HOUSING CAPITAL & ASSET MANAGEMENT,Legal Services-Other,HMCOURTS-SERVICE.G,29/10/2014,160.00
HOUSING CAPITAL & ASSET MANAGEMENT,Legal Services-Other,HMCOURTS-SERVICE.G,17/12/2014,160.00
HOUSING CAPITAL & ASSET MANAGEMENT,Legal Services-Other,HMCOURTS-SERVICE.G,22/12/2014,180.00
HOUSING CAPITAL & ASSET MANAGEMENT,Legal Services-Other,HMCOURTS-SERVICE.G,11/11/2014,80.00
HOUSING CAPITAL & ASSET MANAGEMENT,Legal Services-Other,HMCOURTS-SERVICE.G,14/11/2014,160.00
HOUSING CAPITAL & ASSET MANAGEMENT,Legal Services-Other,HMCOURTS-SERVICE.G,04/11/2014,80.00
HOUSING CAPITAL & ASSET MANAGEMENT,Legal Services-Other,HMCOURTS-SERVICE.G,20/10/2014,140.00
TENANT MANAGEMENT ORGANISATIONS,Environmental Services-Waste,GLASDON U K LTD,26/08/2014,29.16
TENANT MANAGEMENT ORGANISATIONS,Vehicle Fuel,TESCO PFS 2161,15/08/2014,10.62
TENANT MANAGEMENT ORGANISATIONS,Vehicle Fuel,TESCO PFS 2161,16/10/2014,18.62
TENANT MANAGEMENT ORGANISATIONS,Vehicle Fuel,TESCO PFS 2161,16/10/2014,18.99
TENANT MANAGEMENT ORGANISATIONS,Vehicle Fuel,TESCO PFS 2161,27/11/2014,14.79
